{"text_format":"3","workbook":"xlsx","n_sheets":2,"sheets":["수업 시간표","수업 목록"],"not_rendered":{"defined_names":17},"read":"whole","date_system":"1900"}

{"sheet":"수업 시간표","index":0,"n_rows":56,"n_cols":9,"rows_kept":56,"merged":[[0,1,1,5],[0,8,1,8]]}
[null,"수업 시간표",{"$nulls":4},"시간표 시작","시간 간격","수업 목록"]
[{"$nulls":6},"08:00:00","15분"]
[null,"시간","일요일","월요일","화요일","수요일","목요일","금요일","토요일"]
[null,{"$f":"일정시작","v":"08:00:00"},{"$f":"IFERROR(INDEX(수업목록[],MATCH(SUMPRODUCT((수업목록[요일]=수업시간표[[#Headers],[일요일]])*(ROUNDDOWN($B4,10)>=ROUNDDOWN(수업목록[시작 시간],10))*($B4<=수업목록[종료 시간]),수업목록[고유]),수업목록[고유],0),2),0)","v":0},{"$f":"IFERROR(INDEX(수업목록[],MATCH(SUMPRODUCT((수업목록[요일]=수업시간표[[#Headers],[월요일]])*(ROUNDDOWN($B4,10)>=ROUNDDOWN(수업목록[시작 시간],10))*($B4<=수업목록[종료 시간]),수업목록[고유]),수업목록[고유],0),2),0)","v":0},{"$f":"IFERROR(INDEX(수업목록[],MATCH(SUMPRODUCT((수업목록[요일]=수업시간표[[#Headers],[화요일]])*(ROUNDDOWN($B4,10)>=ROUNDDOWN(수업목록[시작 시간],10))*($B4<=수업목록[종료 시간]),수업목록[고유]),수업목록[고유],0),2),0)","v":0},{"$f":"IFERROR(INDEX(수업목록[],MATCH(SUMPRODUCT((수업목록[요일]=수업시간표[[#Headers],[수요일]])*(ROUNDDOWN($B4,10)>=ROUNDDOWN(수업목록[시작 시간],10))*($B4<=수업목록[종료 시간]),수업목록[고유]),수업목록[고유],0),2),0)","v":0},{"$f":"IFERROR(INDEX(수업목록[],MATCH(SUMPRODUCT((수업목록[요일]=수업시간표[[#Headers],[목요일]])*(ROUNDDOWN($B4,10)>=ROUNDDOWN(수업목록[시작 시간],10))*($B4<=수업목록[종료 시간]),수업목록[고유]),수업목록[고유],0),2),0)","v":0},{"$f":"IFERROR(INDEX(수업목록[],MATCH(SUMPRODUCT((수업목록[요일]=수업시간표[[#Headers],[금요일]])*(ROUNDDOWN($B4,10)>=ROUNDDOWN(수업목록[시작 시간],10))*($B4<=수업목록[종료 시간]),수업목록[고유]),수업목록[고유],0),2),0)","v":0},{"$f":"IFERROR(INDEX(수업목록[],MATCH(SUMPRODUCT((수업목록[요일]=수업시간표[[#Headers],[토요일]])*(ROUNDDOWN($B4,10)>=ROUNDDOWN(수업목록[시작 시간],10))*($B4<=수업목록[종료 시간]),수업목록[고유]),수업목록[고유],0),2),0)","v":0}]
[null,{"$f":"B4+증분","v":"08:15:00"},{"$f":"IFERROR(INDEX(수업목록[],MATCH(SUMPRODUCT((수업목록[요일]=수업시간표[[#Headers],[일요일]])*(ROUNDDOWN($B5,10)>=ROUNDDOWN(수업목록[시작 시간],10))*($B5<=수업목록[종료 시간]),수업목록[고유]),수업목록[고유],0),2),0)","v":0},{"$f":"IFERROR(INDEX(수업목록[],MATCH(SUMPRODUCT((수업목록[요일]=수업시간표[[#Headers],[월요일]])*(ROUNDDOWN($B5,10)>=ROUNDDOWN(수업목록[시작 시간],10))*($B5<=수업목록[종료 시간]),수업목록[고유]),수업목록[고유],0),2),0)","v":"MTH-113"},{"$f":"IFERROR(INDEX(수업목록[],MATCH(SUMPRODUCT((수업목록[요일]=수업시간표[[#Headers],[화요일]])*(ROUNDDOWN($B5,10)>=ROUNDDOWN(수업목록[시작 시간],10))*($B5<=수업목록[종료 시간]),수업목록[고유]),수업목록[고유],0),2),0)","v":0},{"$f":"IFERROR(INDEX(수업목록[],MATCH(SUMPRODUCT((수업목록[요일]=수업시간표[[#Headers],[수요일]])*(ROUNDDOWN($B5,10)>=ROUNDDOWN(수업목록[시작 시간],10))*($B5<=수업목록[종료 시간]),수업목록[고유]),수업목록[고유],0),2),0)","v":"MTH-113"},{"$f":"IFERROR(INDEX(수업목록[],MATCH(SUMPRODUCT((수업목록[요일]=수업시간표[[#Headers],[목요일]])*(ROUNDDOWN($B5,10)>=ROUNDDOWN(수업목록[시작 시간],10))*($B5<=수업목록[종료 시간]),수업목록[고유]),수업목록[고유],0),2),0)","v":0},{"$f":"IFERROR(INDEX(수업목록[],MATCH(SUMPRODUCT((수업목록[요일]=수업시간표[[#Headers],[금요일]])*(ROUNDDOWN($B5,10)>=ROUNDDOWN(수업목록[시작 시간],10))*($B5<=수업목록[종료 시간]),수업목록[고유]),수업목록[고유],0),2),0)","v":"MTH-113"},{"$f":"IFERROR(INDEX(수업목록[],MATCH(SUMPRODUCT((수업목록[요일]=수업시간표[[#Headers],[토요일]])*(ROUNDDOWN($B5,10)>=ROUNDDOWN(수업목록[시작 시간],10))*($B5<=수업목록[종료 시간]),수업목록[고유]),수업목록[고유],0),2),0)","v":0}]
[null,"08:30:00",{"$f":"IFERROR(INDEX(수업목록[],MATCH(SUMPRODUCT((수업목록[요일]=수업시간표[[#Headers],[일요일]])*(ROUNDDOWN($B6,10)>=ROUNDDOWN(수업목록[시작 시간],10))*($B6<=수업목록[종료 시간]),수업목록[고유]),수업목록[고유],0),2),0)","v":0},{"$f":"IFERROR(INDEX(수업목록[],MATCH(SUMPRODUCT((수업목록[요일]=수업시간표[[#Headers],[월요일]])*(ROUNDDOWN($B6,10)>=ROUNDDOWN(수업목록[시작 시간],10))*($B6<=수업목록[종료 시간]),수업목록[고유]),수업목록[고유],0),2),0)","v":"MTH-113"},{"$f":"IFERROR(INDEX(수업목록[],MATCH(SUMPRODUCT((수업목록[요일]=수업시간표[[#Headers],[화요일]])*(ROUNDDOWN($B6,10)>=ROUNDDOWN(수업목록[시작 시간],10))*($B6<=수업목록[종료 시간]),수업목록[고유]),수업목록[고유],0),2),0)","v":0},{"$f":"IFERROR(INDEX(수업목록[],MATCH(SUMPRODUCT((수업목록[요일]=수업시간표[[#Headers],[수요일]])*(ROUNDDOWN($B6,10)>=ROUNDDOWN(수업목록[시작 시간],10))*($B6<=수업목록[종료 시간]),수업목록[고유]),수업목록[고유],0),2),0)","v":"MTH-113"},{"$f":"IFERROR(INDEX(수업목록[],MATCH(SUMPRODUCT((수업목록[요일]=수업시간표[[#Headers],[목요일]])*(ROUNDDOWN($B6,10)>=ROUNDDOWN(수업목록[시작 시간],10))*($B6<=수업목록[종료 시간]),수업목록[고유]),수업목록[고유],0),2),0)","v":0},{"$f":"IFERROR(INDEX(수업목록[],MATCH(SUMPRODUCT((수업목록[요일]=수업시간표[[#Headers],[금요일]])*(ROUNDDOWN($B6,10)>=ROUNDDOWN(수업목록[시작 시간],10))*($B6<=수업목록[종료 시간]),수업목록[고유]),수업목록[고유],0),2),0)","v":"MTH-113"},{"$f":"IFERROR(INDEX(수업목록[],MATCH(SUMPRODUCT((수업목록[요일]=수업시간표[[#Headers],[토요일]])*(ROUNDDOWN($B6,10)>=ROUNDDOWN(수업목록[시작 시간],10))*($B6<=수업목록[종료 시간]),수업목록[고유]),수업목록[고유],0),2),0)","v":0}]
[null,{"$f":"B6+증분","v":"08:45:00"},{"$f":"IFERROR(INDEX(수업목록[],MATCH(SUMPRODUCT((수업목록[요일]=수업시간표[[#Headers],[일요일]])*(ROUNDDOWN($B7,10)>=ROUNDDOWN(수업목록[시작 시간],10))*($B7<=수업목록[종료 시간]),수업목록[고유]),수업목록[고유],0),2),0)","v":0},{"$f":"IFERROR(INDEX(수업목록[],MATCH(SUMPRODUCT((수업목록[요일]=수업시간표[[#Headers],[월요일]])*(ROUNDDOWN($B7,10)>=ROUNDDOWN(수업목록[시작 시간],10))*($B7<=수업목록[종료 시간]),수업목록[고유]),수업목록[고유],0),2),0)","v":"MTH-113"},{"$f":"IFERROR(INDEX(수업목록[],MATCH(SUMPRODUCT((수업목록[요일]=수업시간표[[#Headers],[화요일]])*(ROUNDDOWN($B7,10)>=ROUNDDOWN(수업목록[시작 시간],10))*($B7<=수업목록[종료 시간]),수업목록[고유]),수업목록[고유],0),2),0)","v":0},{"$f":"IFERROR(INDEX(수업목록[],MATCH(SUMPRODUCT((수업목록[요일]=수업시간표[[#Headers],[수요일]])*(ROUNDDOWN($B7,10)>=ROUNDDOWN(수업목록[시작 시간],10))*($B7<=수업목록[종료 시간]),수업목록[고유]),수업목록[고유],0),2),0)","v":"MTH-113"},{"$f":"IFERROR(INDEX(수업목록[],MATCH(SUMPRODUCT((수업목록[요일]=수업시간표[[#Headers],[목요일]])*(ROUNDDOWN($B7,10)>=ROUNDDOWN(수업목록[시작 시간],10))*($B7<=수업목록[종료 시간]),수업목록[고유]),수업목록[고유],0),2),0)","v":0},{"$f":"IFERROR(INDEX(수업목록[],MATCH(SUMPRODUCT((수업목록[요일]=수업시간표[[#Headers],[금요일]])*(ROUNDDOWN($B7,10)>=ROUNDDOWN(수업목록[시작 시간],10))*($B7<=수업목록[종료 시간]),수업목록[고유]),수업목록[고유],0),2),0)","v":"MTH-113"},{"$f":"IFERROR(INDEX(수업목록[],MATCH(SUMPRODUCT((수업목록[요일]=수업시간표[[#Headers],[토요일]])*(ROUNDDOWN($B7,10)>=ROUNDDOWN(수업목록[시작 시간],10))*($B7<=수업목록[종료 시간]),수업목록[고유]),수업목록[고유],0),2),0)","v":0}]
[null,"09:00:00",{"$f":"IFERROR(INDEX(수업목록[],MATCH(SUMPRODUCT((수업목록[요일]=수업시간표[[#Headers],[일요일]])*(ROUNDDOWN($B8,10)>=ROUNDDOWN(수업목록[시작 시간],10))*($B8<=수업목록[종료 시간]),수업목록[고유]),수업목록[고유],0),2),0)","v":0},{"$f":"IFERROR(INDEX(수업목록[],MATCH(SUMPRODUCT((수업목록[요일]=수업시간표[[#Headers],[월요일]])*(ROUNDDOWN($B8,10)>=ROUNDDOWN(수업목록[시작 시간],10))*($B8<=수업목록[종료 시간]),수업목록[고유]),수업목록[고유],0),2),0)","v":"MTH-113"},{"$f":"IFERROR(INDEX(수업목록[],MATCH(SUMPRODUCT((수업목록[요일]=수업시간표[[#Headers],[화요일]])*(ROUNDDOWN($B8,10)>=ROUNDDOWN(수업목록[시작 시간],10))*($B8<=수업목록[종료 시간]),수업목록[고유]),수업목록[고유],0),2),0)","v":0},{"$f":"IFERROR(INDEX(수업목록[],MATCH(SUMPRODUCT((수업목록[요일]=수업시간표[[#Headers],[수요일]])*(ROUNDDOWN($B8,10)>=ROUNDDOWN(수업목록[시작 시간],10))*($B8<=수업목록[종료 시간]),수업목록[고유]),수업목록[고유],0),2),0)","v":"MTH-113"},{"$f":"IFERROR(INDEX(수업목록[],MATCH(SUMPRODUCT((수업목록[요일]=수업시간표[[#Headers],[목요일]])*(ROUNDDOWN($B8,10)>=ROUNDDOWN(수업목록[시작 시간],10))*($B8<=수업목록[종료 시간]),수업목록[고유]),수업목록[고유],0),2),0)","v":0},{"$f":"IFERROR(INDEX(수업목록[],MATCH(SUMPRODUCT((수업목록[요일]=수업시간표[[#Headers],[금요일]])*(ROUNDDOWN($B8,10)>=ROUNDDOWN(수업목록[시작 시간],10))*($B8<=수업목록[종료 시간]),수업목록[고유]),수업목록[고유],0),2),0)","v":"MTH-113"},{"$f":"IFERROR(INDEX(수업목록[],MATCH(SUMPRODUCT((수업목록[요일]=수업시간표[[#Headers],[토요일]])*(ROUNDDOWN($B8,10)>=ROUNDDOWN(수업목록[시작 시간],10))*($B8<=수업목록[종료 시간]),수업목록[고유]),수업목록[고유],0),2),0)","v":0}]
[null,"09:15:00",{"$f":"IFERROR(INDEX(수업목록[],MATCH(SUMPRODUCT((수업목록[요일]=수업시간표[[#Headers],[일요일]])*(ROUNDDOWN($B9,10)>=ROUNDDOWN(수업목록[시작 시간],10))*($B9<=수업목록[종료 시간]),수업목록[고유]),수업목록[고유],0),2),0)","v":0},{"$f":"IFERROR(INDEX(수업목록[],MATCH(SUMPRODUCT((수업목록[요일]=수업시간표[[#Headers],[월요일]])*(ROUNDDOWN($B9,10)>=ROUNDDOWN(수업목록[시작 시간],10))*($B9<=수업목록[종료 시간]),수업목록[고유]),수업목록[고유],0),2),0)","v":"MTH-113"},{"$f":"IFERROR(INDEX(수업목록[],MATCH(SUMPRODUCT((수업목록[요일]=수업시간표[[#Headers],[화요일]])*(ROUNDDOWN($B9,10)>=ROUNDDOWN(수업목록[시작 시간],10))*($B9<=수업목록[종료 시간]),수업목록[고유]),수업목록[고유],0),2),0)","v":0},{"$f":"IFERROR(INDEX(수업목록[],MATCH(SUMPRODUCT((수업목록[요일]=수업시간표[[#Headers],[수요일]])*(ROUNDDOWN($B9,10)>=ROUNDDOWN(수업목록[시작 시간],10))*($B9<=수업목록[종료 시간]),수업목록[고유]),수업목록[고유],0),2),0)","v":"MTH-113"},{"$f":"IFERROR(INDEX(수업목록[],MATCH(SUMPRODUCT((수업목록[요일]=수업시간표[[#Headers],[목요일]])*(ROUNDDOWN($B9,10)>=ROUNDDOWN(수업목록[시작 시간],10))*($B9<=수업목록[종료 시간]),수업목록[고유]),수업목록[고유],0),2),0)","v":0},{"$f":"IFERROR(INDEX(수업목록[],MATCH(SUMPRODUCT((수업목록[요일]=수업시간표[[#Headers],[금요일]])*(ROUNDDOWN($B9,10)>=ROUNDDOWN(수업목록[시작 시간],10))*($B9<=수업목록[종료 시간]),수업목록[고유]),수업목록[고유],0),2),0)","v":"MTH-113"},{"$f":"IFERROR(INDEX(수업목록[],MATCH(SUMPRODUCT((수업목록[요일]=수업시간표[[#Headers],[토요일]])*(ROUNDDOWN($B9,10)>=ROUNDDOWN(수업목록[시작 시간],10))*($B9<=수업목록[종료 시간]),수업목록[고유]),수업목록[고유],0),2),0)","v":0}]
[null,"09:30:00",{"$f":"IFERROR(INDEX(수업목록[],MATCH(SUMPRODUCT((수업목록[요일]=수업시간표[[#Headers],[일요일]])*(ROUNDDOWN($B10,10)>=ROUNDDOWN(수업목록[시작 시간],10))*($B10<=수업목록[종료 시간]),수업목록[고유]),수업목록[고유],0),2),0)","v":0},{"$f":"IFERROR(INDEX(수업목록[],MATCH(SUMPRODUCT((수업목록[요일]=수업시간표[[#Headers],[월요일]])*(ROUNDDOWN($B10,10)>=ROUNDDOWN(수업목록[시작 시간],10))*($B10<=수업목록[종료 시간]),수업목록[고유]),수업목록[고유],0),2),0)","v":0},{"$f":"IFERROR(INDEX(수업목록[],MATCH(SUMPRODUCT((수업목록[요일]=수업시간표[[#Headers],[화요일]])*(ROUNDDOWN($B10,10)>=ROUNDDOWN(수업목록[시작 시간],10))*($B10<=수업목록[종료 시간]),수업목록[고유]),수업목록[고유],0),2),0)","v":0},{"$f":"IFERROR(INDEX(수업목록[],MATCH(SUMPRODUCT((수업목록[요일]=수업시간표[[#Headers],[수요일]])*(ROUNDDOWN($B10,10)>=ROUNDDOWN(수업목록[시작 시간],10))*($B10<=수업목록[종료 시간]),수업목록[고유]),수업목록[고유],0),2),0)","v":0},{"$f":"IFERROR(INDEX(수업목록[],MATCH(SUMPRODUCT((수업목록[요일]=수업시간표[[#Headers],[목요일]])*(ROUNDDOWN($B10,10)>=ROUNDDOWN(수업목록[시작 시간],10))*($B10<=수업목록[종료 시간]),수업목록[고유]),수업목록[고유],0),2),0)","v":0},{"$f":"IFERROR(INDEX(수업목록[],MATCH(SUMPRODUCT((수업목록[요일]=수업시간표[[#Headers],[금요일]])*(ROUNDDOWN($B10,10)>=ROUNDDOWN(수업목록[시작 시간],10))*($B10<=수업목록[종료 시간]),수업목록[고유]),수업목록[고유],0),2),0)","v":0},{"$f":"IFERROR(INDEX(수업목록[],MATCH(SUMPRODUCT((수업목록[요일]=수업시간표[[#Headers],[토요일]])*(ROUNDDOWN($B10,10)>=ROUNDDOWN(수업목록[시작 시간],10))*($B10<=수업목록[종료 시간]),수업목록[고유]),수업목록[고유],0),2),0)","v":0}]
[null,"09:45:00",{"$f":"IFERROR(INDEX(수업목록[],MATCH(SUMPRODUCT((수업목록[요일]=수업시간표[[#Headers],[일요일]])*(ROUNDDOWN($B11,10)>=ROUNDDOWN(수업목록[시작 시간],10))*($B11<=수업목록[종료 시간]),수업목록[고유]),수업목록[고유],0),2),0)","v":0},{"$f":"IFERROR(INDEX(수업목록[],MATCH(SUMPRODUCT((수업목록[요일]=수업시간표[[#Headers],[월요일]])*(ROUNDDOWN($B11,10)>=ROUNDDOWN(수업목록[시작 시간],10))*($B11<=수업목록[종료 시간]),수업목록[고유]),수업목록[고유],0),2),0)","v":0},{"$f":"IFERROR(INDEX(수업목록[],MATCH(SUMPRODUCT((수업목록[요일]=수업시간표[[#Headers],[화요일]])*(ROUNDDOWN($B11,10)>=ROUNDDOWN(수업목록[시작 시간],10))*($B11<=수업목록[종료 시간]),수업목록[고유]),수업목록[고유],0),2),0)","v":0},{"$f":"IFERROR(INDEX(수업목록[],MATCH(SUMPRODUCT((수업목록[요일]=수업시간표[[#Headers],[수요일]])*(ROUNDDOWN($B11,10)>=ROUNDDOWN(수업목록[시작 시간],10))*($B11<=수업목록[종료 시간]),수업목록[고유]),수업목록[고유],0),2),0)","v":0},{"$f":"IFERROR(INDEX(수업목록[],MATCH(SUMPRODUCT((수업목록[요일]=수업시간표[[#Headers],[목요일]])*(ROUNDDOWN($B11,10)>=ROUNDDOWN(수업목록[시작 시간],10))*($B11<=수업목록[종료 시간]),수업목록[고유]),수업목록[고유],0),2),0)","v":0},{"$f":"IFERROR(INDEX(수업목록[],MATCH(SUMPRODUCT((수업목록[요일]=수업시간표[[#Headers],[금요일]])*(ROUNDDOWN($B11,10)>=ROUNDDOWN(수업목록[시작 시간],10))*($B11<=수업목록[종료 시간]),수업목록[고유]),수업목록[고유],0),2),0)","v":0},{"$f":"IFERROR(INDEX(수업목록[],MATCH(SUMPRODUCT((수업목록[요일]=수업시간표[[#Headers],[토요일]])*(ROUNDDOWN($B11,10)>=ROUNDDOWN(수업목록[시작 시간],10))*($B11<=수업목록[종료 시간]),수업목록[고유]),수업목록[고유],0),2),0)","v":0}]
[null,"10:00:00",{"$f":"IFERROR(INDEX(수업목록[],MATCH(SUMPRODUCT((수업목록[요일]=수업시간표[[#Headers],[일요일]])*(ROUNDDOWN($B12,10)>=ROUNDDOWN(수업목록[시작 시간],10))*($B12<=수업목록[종료 시간]),수업목록[고유]),수업목록[고유],0),2),0)","v":0},{"$f":"IFERROR(INDEX(수업목록[],MATCH(SUMPRODUCT((수업목록[요일]=수업시간표[[#Headers],[월요일]])*(ROUNDDOWN($B12,10)>=ROUNDDOWN(수업목록[시작 시간],10))*($B12<=수업목록[종료 시간]),수업목록[고유]),수업목록[고유],0),2),0)","v":0},{"$f":"IFERROR(INDEX(수업목록[],MATCH(SUMPRODUCT((수업목록[요일]=수업시간표[[#Headers],[화요일]])*(ROUNDDOWN($B12,10)>=ROUNDDOWN(수업목록[시작 시간],10))*($B12<=수업목록[종료 시간]),수업목록[고유]),수업목록[고유],0),2),0)","v":0},{"$f":"IFERROR(INDEX(수업목록[],MATCH(SUMPRODUCT((수업목록[요일]=수업시간표[[#Headers],[수요일]])*(ROUNDDOWN($B12,10)>=ROUNDDOWN(수업목록[시작 시간],10))*($B12<=수업목록[종료 시간]),수업목록[고유]),수업목록[고유],0),2),0)","v":0},{"$f":"IFERROR(INDEX(수업목록[],MATCH(SUMPRODUCT((수업목록[요일]=수업시간표[[#Headers],[목요일]])*(ROUNDDOWN($B12,10)>=ROUNDDOWN(수업목록[시작 시간],10))*($B12<=수업목록[종료 시간]),수업목록[고유]),수업목록[고유],0),2),0)","v":0},{"$f":"IFERROR(INDEX(수업목록[],MATCH(SUMPRODUCT((수업목록[요일]=수업시간표[[#Headers],[금요일]])*(ROUNDDOWN($B12,10)>=ROUNDDOWN(수업목록[시작 시간],10))*($B12<=수업목록[종료 시간]),수업목록[고유]),수업목록[고유],0),2),0)","v":0},{"$f":"IFERROR(INDEX(수업목록[],MATCH(SUMPRODUCT((수업목록[요일]=수업시간표[[#Headers],[토요일]])*(ROUNDDOWN($B12,10)>=ROUNDDOWN(수업목록[시작 시간],10))*($B12<=수업목록[종료 시간]),수업목록[고유]),수업목록[고유],0),2),0)","v":0}]
[null,"10:15:00",{"$f":"IFERROR(INDEX(수업목록[],MATCH(SUMPRODUCT((수업목록[요일]=수업시간표[[#Headers],[일요일]])*(ROUNDDOWN($B13,10)>=ROUNDDOWN(수업목록[시작 시간],10))*($B13<=수업목록[종료 시간]),수업목록[고유]),수업목록[고유],0),2),0)","v":0},{"$f":"IFERROR(INDEX(수업목록[],MATCH(SUMPRODUCT((수업목록[요일]=수업시간표[[#Headers],[월요일]])*(ROUNDDOWN($B13,10)>=ROUNDDOWN(수업목록[시작 시간],10))*($B13<=수업목록[종료 시간]),수업목록[고유]),수업목록[고유],0),2),0)","v":0},{"$f":"IFERROR(INDEX(수업목록[],MATCH(SUMPRODUCT((수업목록[요일]=수업시간표[[#Headers],[화요일]])*(ROUNDDOWN($B13,10)>=ROUNDDOWN(수업목록[시작 시간],10))*($B13<=수업목록[종료 시간]),수업목록[고유]),수업목록[고유],0),2),0)","v":0},{"$f":"IFERROR(INDEX(수업목록[],MATCH(SUMPRODUCT((수업목록[요일]=수업시간표[[#Headers],[수요일]])*(ROUNDDOWN($B13,10)>=ROUNDDOWN(수업목록[시작 시간],10))*($B13<=수업목록[종료 시간]),수업목록[고유]),수업목록[고유],0),2),0)","v":0},{"$f":"IFERROR(INDEX(수업목록[],MATCH(SUMPRODUCT((수업목록[요일]=수업시간표[[#Headers],[목요일]])*(ROUNDDOWN($B13,10)>=ROUNDDOWN(수업목록[시작 시간],10))*($B13<=수업목록[종료 시간]),수업목록[고유]),수업목록[고유],0),2),0)","v":0},{"$f":"IFERROR(INDEX(수업목록[],MATCH(SUMPRODUCT((수업목록[요일]=수업시간표[[#Headers],[금요일]])*(ROUNDDOWN($B13,10)>=ROUNDDOWN(수업목록[시작 시간],10))*($B13<=수업목록[종료 시간]),수업목록[고유]),수업목록[고유],0),2),0)","v":0},{"$f":"IFERROR(INDEX(수업목록[],MATCH(SUMPRODUCT((수업목록[요일]=수업시간표[[#Headers],[토요일]])*(ROUNDDOWN($B13,10)>=ROUNDDOWN(수업목록[시작 시간],10))*($B13<=수업목록[종료 시간]),수업목록[고유]),수업목록[고유],0),2),0)","v":0}]
[null,"10:30:00",{"$f":"IFERROR(INDEX(수업목록[],MATCH(SUMPRODUCT((수업목록[요일]=수업시간표[[#Headers],[일요일]])*(ROUNDDOWN($B14,10)>=ROUNDDOWN(수업목록[시작 시간],10))*($B14<=수업목록[종료 시간]),수업목록[고유]),수업목록[고유],0),2),0)","v":0},{"$f":"IFERROR(INDEX(수업목록[],MATCH(SUMPRODUCT((수업목록[요일]=수업시간표[[#Headers],[월요일]])*(ROUNDDOWN($B14,10)>=ROUNDDOWN(수업목록[시작 시간],10))*($B14<=수업목록[종료 시간]),수업목록[고유]),수업목록[고유],0),2),0)","v":0},{"$f":"IFERROR(INDEX(수업목록[],MATCH(SUMPRODUCT((수업목록[요일]=수업시간표[[#Headers],[화요일]])*(ROUNDDOWN($B14,10)>=ROUNDDOWN(수업목록[시작 시간],10))*($B14<=수업목록[종료 시간]),수업목록[고유]),수업목록[고유],0),2),0)","v":0},{"$f":"IFERROR(INDEX(수업목록[],MATCH(SUMPRODUCT((수업목록[요일]=수업시간표[[#Headers],[수요일]])*(ROUNDDOWN($B14,10)>=ROUNDDOWN(수업목록[시작 시간],10))*($B14<=수업목록[종료 시간]),수업목록[고유]),수업목록[고유],0),2),0)","v":0},{"$f":"IFERROR(INDEX(수업목록[],MATCH(SUMPRODUCT((수업목록[요일]=수업시간표[[#Headers],[목요일]])*(ROUNDDOWN($B14,10)>=ROUNDDOWN(수업목록[시작 시간],10))*($B14<=수업목록[종료 시간]),수업목록[고유]),수업목록[고유],0),2),0)","v":0},{"$f":"IFERROR(INDEX(수업목록[],MATCH(SUMPRODUCT((수업목록[요일]=수업시간표[[#Headers],[금요일]])*(ROUNDDOWN($B14,10)>=ROUNDDOWN(수업목록[시작 시간],10))*($B14<=수업목록[종료 시간]),수업목록[고유]),수업목록[고유],0),2),0)","v":0},{"$f":"IFERROR(INDEX(수업목록[],MATCH(SUMPRODUCT((수업목록[요일]=수업시간표[[#Headers],[토요일]])*(ROUNDDOWN($B14,10)>=ROUNDDOWN(수업목록[시작 시간],10))*($B14<=수업목록[종료 시간]),수업목록[고유]),수업목록[고유],0),2),0)","v":0}]
[null,"10:45:00",{"$f":"IFERROR(INDEX(수업목록[],MATCH(SUMPRODUCT((수업목록[요일]=수업시간표[[#Headers],[일요일]])*(ROUNDDOWN($B15,10)>=ROUNDDOWN(수업목록[시작 시간],10))*($B15<=수업목록[종료 시간]),수업목록[고유]),수업목록[고유],0),2),0)","v":0},{"$f":"IFERROR(INDEX(수업목록[],MATCH(SUMPRODUCT((수업목록[요일]=수업시간표[[#Headers],[월요일]])*(ROUNDDOWN($B15,10)>=ROUNDDOWN(수업목록[시작 시간],10))*($B15<=수업목록[종료 시간]),수업목록[고유]),수업목록[고유],0),2),0)","v":0},{"$f":"IFERROR(INDEX(수업목록[],MATCH(SUMPRODUCT((수업목록[요일]=수업시간표[[#Headers],[화요일]])*(ROUNDDOWN($B15,10)>=ROUNDDOWN(수업목록[시작 시간],10))*($B15<=수업목록[종료 시간]),수업목록[고유]),수업목록[고유],0),2),0)","v":0},{"$f":"IFERROR(INDEX(수업목록[],MATCH(SUMPRODUCT((수업목록[요일]=수업시간표[[#Headers],[수요일]])*(ROUNDDOWN($B15,10)>=ROUNDDOWN(수업목록[시작 시간],10))*($B15<=수업목록[종료 시간]),수업목록[고유]),수업목록[고유],0),2),0)","v":0},{"$f":"IFERROR(INDEX(수업목록[],MATCH(SUMPRODUCT((수업목록[요일]=수업시간표[[#Headers],[목요일]])*(ROUNDDOWN($B15,10)>=ROUNDDOWN(수업목록[시작 시간],10))*($B15<=수업목록[종료 시간]),수업목록[고유]),수업목록[고유],0),2),0)","v":0},{"$f":"IFERROR(INDEX(수업목록[],MATCH(SUMPRODUCT((수업목록[요일]=수업시간표[[#Headers],[금요일]])*(ROUNDDOWN($B15,10)>=ROUNDDOWN(수업목록[시작 시간],10))*($B15<=수업목록[종료 시간]),수업목록[고유]),수업목록[고유],0),2),0)","v":0},{"$f":"IFERROR(INDEX(수업목록[],MATCH(SUMPRODUCT((수업목록[요일]=수업시간표[[#Headers],[토요일]])*(ROUNDDOWN($B15,10)>=ROUNDDOWN(수업목록[시작 시간],10))*($B15<=수업목록[종료 시간]),수업목록[고유]),수업목록[고유],0),2),0)","v":0}]
[null,"11:00:00",{"$f":"IFERROR(INDEX(수업목록[],MATCH(SUMPRODUCT((수업목록[요일]=수업시간표[[#Headers],[일요일]])*(ROUNDDOWN($B16,10)>=ROUNDDOWN(수업목록[시작 시간],10))*($B16<=수업목록[종료 시간]),수업목록[고유]),수업목록[고유],0),2),0)","v":0},{"$f":"IFERROR(INDEX(수업목록[],MATCH(SUMPRODUCT((수업목록[요일]=수업시간표[[#Headers],[월요일]])*(ROUNDDOWN($B16,10)>=ROUNDDOWN(수업목록[시작 시간],10))*($B16<=수업목록[종료 시간]),수업목록[고유]),수업목록[고유],0),2),0)","v":0},{"$f":"IFERROR(INDEX(수업목록[],MATCH(SUMPRODUCT((수업목록[요일]=수업시간표[[#Headers],[화요일]])*(ROUNDDOWN($B16,10)>=ROUNDDOWN(수업목록[시작 시간],10))*($B16<=수업목록[종료 시간]),수업목록[고유]),수업목록[고유],0),2),0)","v":"HPE-295"},{"$f":"IFERROR(INDEX(수업목록[],MATCH(SUMPRODUCT((수업목록[요일]=수업시간표[[#Headers],[수요일]])*(ROUNDDOWN($B16,10)>=ROUNDDOWN(수업목록[시작 시간],10))*($B16<=수업목록[종료 시간]),수업목록[고유]),수업목록[고유],0),2),0)","v":0},{"$f":"IFERROR(INDEX(수업목록[],MATCH(SUMPRODUCT((수업목록[요일]=수업시간표[[#Headers],[목요일]])*(ROUNDDOWN($B16,10)>=ROUNDDOWN(수업목록[시작 시간],10))*($B16<=수업목록[종료 시간]),수업목록[고유]),수업목록[고유],0),2),0)","v":"HPE-295"},{"$f":"IFERROR(INDEX(수업목록[],MATCH(SUMPRODUCT((수업목록[요일]=수업시간표[[#Headers],[금요일]])*(ROUNDDOWN($B16,10)>=ROUNDDOWN(수업목록[시작 시간],10))*($B16<=수업목록[종료 시간]),수업목록[고유]),수업목록[고유],0),2),0)","v":0},{"$f":"IFERROR(INDEX(수업목록[],MATCH(SUMPRODUCT((수업목록[요일]=수업시간표[[#Headers],[토요일]])*(ROUNDDOWN($B16,10)>=ROUNDDOWN(수업목록[시작 시간],10))*($B16<=수업목록[종료 시간]),수업목록[고유]),수업목록[고유],0),2),0)","v":0}]
[null,"11:15:00",{"$f":"IFERROR(INDEX(수업목록[],MATCH(SUMPRODUCT((수업목록[요일]=수업시간표[[#Headers],[일요일]])*(ROUNDDOWN($B17,10)>=ROUNDDOWN(수업목록[시작 시간],10))*($B17<=수업목록[종료 시간]),수업목록[고유]),수업목록[고유],0),2),0)","v":0},{"$f":"IFERROR(INDEX(수업목록[],MATCH(SUMPRODUCT((수업목록[요일]=수업시간표[[#Headers],[월요일]])*(ROUNDDOWN($B17,10)>=ROUNDDOWN(수업목록[시작 시간],10))*($B17<=수업목록[종료 시간]),수업목록[고유]),수업목록[고유],0),2),0)","v":0},{"$f":"IFERROR(INDEX(수업목록[],MATCH(SUMPRODUCT((수업목록[요일]=수업시간표[[#Headers],[화요일]])*(ROUNDDOWN($B17,10)>=ROUNDDOWN(수업목록[시작 시간],10))*($B17<=수업목록[종료 시간]),수업목록[고유]),수업목록[고유],0),2),0)","v":"HPE-295"},{"$f":"IFERROR(INDEX(수업목록[],MATCH(SUMPRODUCT((수업목록[요일]=수업시간표[[#Headers],[수요일]])*(ROUNDDOWN($B17,10)>=ROUNDDOWN(수업목록[시작 시간],10))*($B17<=수업목록[종료 시간]),수업목록[고유]),수업목록[고유],0),2),0)","v":0},{"$f":"IFERROR(INDEX(수업목록[],MATCH(SUMPRODUCT((수업목록[요일]=수업시간표[[#Headers],[목요일]])*(ROUNDDOWN($B17,10)>=ROUNDDOWN(수업목록[시작 시간],10))*($B17<=수업목록[종료 시간]),수업목록[고유]),수업목록[고유],0),2),0)","v":"HPE-295"},{"$f":"IFERROR(INDEX(수업목록[],MATCH(SUMPRODUCT((수업목록[요일]=수업시간표[[#Headers],[금요일]])*(ROUNDDOWN($B17,10)>=ROUNDDOWN(수업목록[시작 시간],10))*($B17<=수업목록[종료 시간]),수업목록[고유]),수업목록[고유],0),2),0)","v":0},{"$f":"IFERROR(INDEX(수업목록[],MATCH(SUMPRODUCT((수업목록[요일]=수업시간표[[#Headers],[토요일]])*(ROUNDDOWN($B17,10)>=ROUNDDOWN(수업목록[시작 시간],10))*($B17<=수업목록[종료 시간]),수업목록[고유]),수업목록[고유],0),2),0)","v":0}]
[null,"11:30:00",{"$f":"IFERROR(INDEX(수업목록[],MATCH(SUMPRODUCT((수업목록[요일]=수업시간표[[#Headers],[일요일]])*(ROUNDDOWN($B18,10)>=ROUNDDOWN(수업목록[시작 시간],10))*($B18<=수업목록[종료 시간]),수업목록[고유]),수업목록[고유],0),2),0)","v":0},{"$f":"IFERROR(INDEX(수업목록[],MATCH(SUMPRODUCT((수업목록[요일]=수업시간표[[#Headers],[월요일]])*(ROUNDDOWN($B18,10)>=ROUNDDOWN(수업목록[시작 시간],10))*($B18<=수업목록[종료 시간]),수업목록[고유]),수업목록[고유],0),2),0)","v":0},{"$f":"IFERROR(INDEX(수업목록[],MATCH(SUMPRODUCT((수업목록[요일]=수업시간표[[#Headers],[화요일]])*(ROUNDDOWN($B18,10)>=ROUNDDOWN(수업목록[시작 시간],10))*($B18<=수업목록[종료 시간]),수업목록[고유]),수업목록[고유],0),2),0)","v":"HPE-295"},{"$f":"IFERROR(INDEX(수업목록[],MATCH(SUMPRODUCT((수업목록[요일]=수업시간표[[#Headers],[수요일]])*(ROUNDDOWN($B18,10)>=ROUNDDOWN(수업목록[시작 시간],10))*($B18<=수업목록[종료 시간]),수업목록[고유]),수업목록[고유],0),2),0)","v":0},{"$f":"IFERROR(INDEX(수업목록[],MATCH(SUMPRODUCT((수업목록[요일]=수업시간표[[#Headers],[목요일]])*(ROUNDDOWN($B18,10)>=ROUNDDOWN(수업목록[시작 시간],10))*($B18<=수업목록[종료 시간]),수업목록[고유]),수업목록[고유],0),2),0)","v":"HPE-295"},{"$f":"IFERROR(INDEX(수업목록[],MATCH(SUMPRODUCT((수업목록[요일]=수업시간표[[#Headers],[금요일]])*(ROUNDDOWN($B18,10)>=ROUNDDOWN(수업목록[시작 시간],10))*($B18<=수업목록[종료 시간]),수업목록[고유]),수업목록[고유],0),2),0)","v":0},{"$f":"IFERROR(INDEX(수업목록[],MATCH(SUMPRODUCT((수업목록[요일]=수업시간표[[#Headers],[토요일]])*(ROUNDDOWN($B18,10)>=ROUNDDOWN(수업목록[시작 시간],10))*($B18<=수업목록[종료 시간]),수업목록[고유]),수업목록[고유],0),2),0)","v":0}]
[null,"11:45:00",{"$f":"IFERROR(INDEX(수업목록[],MATCH(SUMPRODUCT((수업목록[요일]=수업시간표[[#Headers],[일요일]])*(ROUNDDOWN($B19,10)>=ROUNDDOWN(수업목록[시작 시간],10))*($B19<=수업목록[종료 시간]),수업목록[고유]),수업목록[고유],0),2),0)","v":0},{"$f":"IFERROR(INDEX(수업목록[],MATCH(SUMPRODUCT((수업목록[요일]=수업시간표[[#Headers],[월요일]])*(ROUNDDOWN($B19,10)>=ROUNDDOWN(수업목록[시작 시간],10))*($B19<=수업목록[종료 시간]),수업목록[고유]),수업목록[고유],0),2),0)","v":0},{"$f":"IFERROR(INDEX(수업목록[],MATCH(SUMPRODUCT((수업목록[요일]=수업시간표[[#Headers],[화요일]])*(ROUNDDOWN($B19,10)>=ROUNDDOWN(수업목록[시작 시간],10))*($B19<=수업목록[종료 시간]),수업목록[고유]),수업목록[고유],0),2),0)","v":"HPE-295"},{"$f":"IFERROR(INDEX(수업목록[],MATCH(SUMPRODUCT((수업목록[요일]=수업시간표[[#Headers],[수요일]])*(ROUNDDOWN($B19,10)>=ROUNDDOWN(수업목록[시작 시간],10))*($B19<=수업목록[종료 시간]),수업목록[고유]),수업목록[고유],0),2),0)","v":0},{"$f":"IFERROR(INDEX(수업목록[],MATCH(SUMPRODUCT((수업목록[요일]=수업시간표[[#Headers],[목요일]])*(ROUNDDOWN($B19,10)>=ROUNDDOWN(수업목록[시작 시간],10))*($B19<=수업목록[종료 시간]),수업목록[고유]),수업목록[고유],0),2),0)","v":"HPE-295"},{"$f":"IFERROR(INDEX(수업목록[],MATCH(SUMPRODUCT((수업목록[요일]=수업시간표[[#Headers],[금요일]])*(ROUNDDOWN($B19,10)>=ROUNDDOWN(수업목록[시작 시간],10))*($B19<=수업목록[종료 시간]),수업목록[고유]),수업목록[고유],0),2),0)","v":0},{"$f":"IFERROR(INDEX(수업목록[],MATCH(SUMPRODUCT((수업목록[요일]=수업시간표[[#Headers],[토요일]])*(ROUNDDOWN($B19,10)>=ROUNDDOWN(수업목록[시작 시간],10))*($B19<=수업목록[종료 시간]),수업목록[고유]),수업목록[고유],0),2),0)","v":0}]
[null,"12:00:00",{"$f":"IFERROR(INDEX(수업목록[],MATCH(SUMPRODUCT((수업목록[요일]=수업시간표[[#Headers],[일요일]])*(ROUNDDOWN($B20,10)>=ROUNDDOWN(수업목록[시작 시간],10))*($B20<=수업목록[종료 시간]),수업목록[고유]),수업목록[고유],0),2),0)","v":0},{"$f":"IFERROR(INDEX(수업목록[],MATCH(SUMPRODUCT((수업목록[요일]=수업시간표[[#Headers],[월요일]])*(ROUNDDOWN($B20,10)>=ROUNDDOWN(수업목록[시작 시간],10))*($B20<=수업목록[종료 시간]),수업목록[고유]),수업목록[고유],0),2),0)","v":0},{"$f":"IFERROR(INDEX(수업목록[],MATCH(SUMPRODUCT((수업목록[요일]=수업시간표[[#Headers],[화요일]])*(ROUNDDOWN($B20,10)>=ROUNDDOWN(수업목록[시작 시간],10))*($B20<=수업목록[종료 시간]),수업목록[고유]),수업목록[고유],0),2),0)","v":"HPE-295"},{"$f":"IFERROR(INDEX(수업목록[],MATCH(SUMPRODUCT((수업목록[요일]=수업시간표[[#Headers],[수요일]])*(ROUNDDOWN($B20,10)>=ROUNDDOWN(수업목록[시작 시간],10))*($B20<=수업목록[종료 시간]),수업목록[고유]),수업목록[고유],0),2),0)","v":0},{"$f":"IFERROR(INDEX(수업목록[],MATCH(SUMPRODUCT((수업목록[요일]=수업시간표[[#Headers],[목요일]])*(ROUNDDOWN($B20,10)>=ROUNDDOWN(수업목록[시작 시간],10))*($B20<=수업목록[종료 시간]),수업목록[고유]),수업목록[고유],0),2),0)","v":"HPE-295"},{"$f":"IFERROR(INDEX(수업목록[],MATCH(SUMPRODUCT((수업목록[요일]=수업시간표[[#Headers],[금요일]])*(ROUNDDOWN($B20,10)>=ROUNDDOWN(수업목록[시작 시간],10))*($B20<=수업목록[종료 시간]),수업목록[고유]),수업목록[고유],0),2),0)","v":0},{"$f":"IFERROR(INDEX(수업목록[],MATCH(SUMPRODUCT((수업목록[요일]=수업시간표[[#Headers],[토요일]])*(ROUNDDOWN($B20,10)>=ROUNDDOWN(수업목록[시작 시간],10))*($B20<=수업목록[종료 시간]),수업목록[고유]),수업목록[고유],0),2),0)","v":0}]
[null,"12:15:00",{"$f":"IFERROR(INDEX(수업목록[],MATCH(SUMPRODUCT((수업목록[요일]=수업시간표[[#Headers],[일요일]])*(ROUNDDOWN($B21,10)>=ROUNDDOWN(수업목록[시작 시간],10))*($B21<=수업목록[종료 시간]),수업목록[고유]),수업목록[고유],0),2),0)","v":0},{"$f":"IFERROR(INDEX(수업목록[],MATCH(SUMPRODUCT((수업목록[요일]=수업시간표[[#Headers],[월요일]])*(ROUNDDOWN($B21,10)>=ROUNDDOWN(수업목록[시작 시간],10))*($B21<=수업목록[종료 시간]),수업목록[고유]),수업목록[고유],0),2),0)","v":0},{"$f":"IFERROR(INDEX(수업목록[],MATCH(SUMPRODUCT((수업목록[요일]=수업시간표[[#Headers],[화요일]])*(ROUNDDOWN($B21,10)>=ROUNDDOWN(수업목록[시작 시간],10))*($B21<=수업목록[종료 시간]),수업목록[고유]),수업목록[고유],0),2),0)","v":0},{"$f":"IFERROR(INDEX(수업목록[],MATCH(SUMPRODUCT((수업목록[요일]=수업시간표[[#Headers],[수요일]])*(ROUNDDOWN($B21,10)>=ROUNDDOWN(수업목록[시작 시간],10))*($B21<=수업목록[종료 시간]),수업목록[고유]),수업목록[고유],0),2),0)","v":0},{"$f":"IFERROR(INDEX(수업목록[],MATCH(SUMPRODUCT((수업목록[요일]=수업시간표[[#Headers],[목요일]])*(ROUNDDOWN($B21,10)>=ROUNDDOWN(수업목록[시작 시간],10))*($B21<=수업목록[종료 시간]),수업목록[고유]),수업목록[고유],0),2),0)","v":0},{"$f":"IFERROR(INDEX(수업목록[],MATCH(SUMPRODUCT((수업목록[요일]=수업시간표[[#Headers],[금요일]])*(ROUNDDOWN($B21,10)>=ROUNDDOWN(수업목록[시작 시간],10))*($B21<=수업목록[종료 시간]),수업목록[고유]),수업목록[고유],0),2),0)","v":0},{"$f":"IFERROR(INDEX(수업목록[],MATCH(SUMPRODUCT((수업목록[요일]=수업시간표[[#Headers],[토요일]])*(ROUNDDOWN($B21,10)>=ROUNDDOWN(수업목록[시작 시간],10))*($B21<=수업목록[종료 시간]),수업목록[고유]),수업목록[고유],0),2),0)","v":0}]
[null,"12:30:00",{"$f":"IFERROR(INDEX(수업목록[],MATCH(SUMPRODUCT((수업목록[요일]=수업시간표[[#Headers],[일요일]])*(ROUNDDOWN($B22,10)>=ROUNDDOWN(수업목록[시작 시간],10))*($B22<=수업목록[종료 시간]),수업목록[고유]),수업목록[고유],0),2),0)","v":0},{"$f":"IFERROR(INDEX(수업목록[],MATCH(SUMPRODUCT((수업목록[요일]=수업시간표[[#Headers],[월요일]])*(ROUNDDOWN($B22,10)>=ROUNDDOWN(수업목록[시작 시간],10))*($B22<=수업목록[종료 시간]),수업목록[고유]),수업목록[고유],0),2),0)","v":0},{"$f":"IFERROR(INDEX(수업목록[],MATCH(SUMPRODUCT((수업목록[요일]=수업시간표[[#Headers],[화요일]])*(ROUNDDOWN($B22,10)>=ROUNDDOWN(수업목록[시작 시간],10))*($B22<=수업목록[종료 시간]),수업목록[고유]),수업목록[고유],0),2),0)","v":0},{"$f":"IFERROR(INDEX(수업목록[],MATCH(SUMPRODUCT((수업목록[요일]=수업시간표[[#Headers],[수요일]])*(ROUNDDOWN($B22,10)>=ROUNDDOWN(수업목록[시작 시간],10))*($B22<=수업목록[종료 시간]),수업목록[고유]),수업목록[고유],0),2),0)","v":0},{"$f":"IFERROR(INDEX(수업목록[],MATCH(SUMPRODUCT((수업목록[요일]=수업시간표[[#Headers],[목요일]])*(ROUNDDOWN($B22,10)>=ROUNDDOWN(수업목록[시작 시간],10))*($B22<=수업목록[종료 시간]),수업목록[고유]),수업목록[고유],0),2),0)","v":0},{"$f":"IFERROR(INDEX(수업목록[],MATCH(SUMPRODUCT((수업목록[요일]=수업시간표[[#Headers],[금요일]])*(ROUNDDOWN($B22,10)>=ROUNDDOWN(수업목록[시작 시간],10))*($B22<=수업목록[종료 시간]),수업목록[고유]),수업목록[고유],0),2),0)","v":0},{"$f":"IFERROR(INDEX(수업목록[],MATCH(SUMPRODUCT((수업목록[요일]=수업시간표[[#Headers],[토요일]])*(ROUNDDOWN($B22,10)>=ROUNDDOWN(수업목록[시작 시간],10))*($B22<=수업목록[종료 시간]),수업목록[고유]),수업목록[고유],0),2),0)","v":0}]
[null,"12:45:00",{"$f":"IFERROR(INDEX(수업목록[],MATCH(SUMPRODUCT((수업목록[요일]=수업시간표[[#Headers],[일요일]])*(ROUNDDOWN($B23,10)>=ROUNDDOWN(수업목록[시작 시간],10))*($B23<=수업목록[종료 시간]),수업목록[고유]),수업목록[고유],0),2),0)","v":0},{"$f":"IFERROR(INDEX(수업목록[],MATCH(SUMPRODUCT((수업목록[요일]=수업시간표[[#Headers],[월요일]])*(ROUNDDOWN($B23,10)>=ROUNDDOWN(수업목록[시작 시간],10))*($B23<=수업목록[종료 시간]),수업목록[고유]),수업목록[고유],0),2),0)","v":0},{"$f":"IFERROR(INDEX(수업목록[],MATCH(SUMPRODUCT((수업목록[요일]=수업시간표[[#Headers],[화요일]])*(ROUNDDOWN($B23,10)>=ROUNDDOWN(수업목록[시작 시간],10))*($B23<=수업목록[종료 시간]),수업목록[고유]),수업목록[고유],0),2),0)","v":0},{"$f":"IFERROR(INDEX(수업목록[],MATCH(SUMPRODUCT((수업목록[요일]=수업시간표[[#Headers],[수요일]])*(ROUNDDOWN($B23,10)>=ROUNDDOWN(수업목록[시작 시간],10))*($B23<=수업목록[종료 시간]),수업목록[고유]),수업목록[고유],0),2),0)","v":0},{"$f":"IFERROR(INDEX(수업목록[],MATCH(SUMPRODUCT((수업목록[요일]=수업시간표[[#Headers],[목요일]])*(ROUNDDOWN($B23,10)>=ROUNDDOWN(수업목록[시작 시간],10))*($B23<=수업목록[종료 시간]),수업목록[고유]),수업목록[고유],0),2),0)","v":0},{"$f":"IFERROR(INDEX(수업목록[],MATCH(SUMPRODUCT((수업목록[요일]=수업시간표[[#Headers],[금요일]])*(ROUNDDOWN($B23,10)>=ROUNDDOWN(수업목록[시작 시간],10))*($B23<=수업목록[종료 시간]),수업목록[고유]),수업목록[고유],0),2),0)","v":0},{"$f":"IFERROR(INDEX(수업목록[],MATCH(SUMPRODUCT((수업목록[요일]=수업시간표[[#Headers],[토요일]])*(ROUNDDOWN($B23,10)>=ROUNDDOWN(수업목록[시작 시간],10))*($B23<=수업목록[종료 시간]),수업목록[고유]),수업목록[고유],0),2),0)","v":0}]
[null,"13:00:00",{"$f":"IFERROR(INDEX(수업목록[],MATCH(SUMPRODUCT((수업목록[요일]=수업시간표[[#Headers],[일요일]])*(ROUNDDOWN($B24,10)>=ROUNDDOWN(수업목록[시작 시간],10))*($B24<=수업목록[종료 시간]),수업목록[고유]),수업목록[고유],0),2),0)","v":0},{"$f":"IFERROR(INDEX(수업목록[],MATCH(SUMPRODUCT((수업목록[요일]=수업시간표[[#Headers],[월요일]])*(ROUNDDOWN($B24,10)>=ROUNDDOWN(수업목록[시작 시간],10))*($B24<=수업목록[종료 시간]),수업목록[고유]),수업목록[고유],0),2),0)","v":"WR-121"},{"$f":"IFERROR(INDEX(수업목록[],MATCH(SUMPRODUCT((수업목록[요일]=수업시간표[[#Headers],[화요일]])*(ROUNDDOWN($B24,10)>=ROUNDDOWN(수업목록[시작 시간],10))*($B24<=수업목록[종료 시간]),수업목록[고유]),수업목록[고유],0),2),0)","v":0},{"$f":"IFERROR(INDEX(수업목록[],MATCH(SUMPRODUCT((수업목록[요일]=수업시간표[[#Headers],[수요일]])*(ROUNDDOWN($B24,10)>=ROUNDDOWN(수업목록[시작 시간],10))*($B24<=수업목록[종료 시간]),수업목록[고유]),수업목록[고유],0),2),0)","v":"WR-121"},{"$f":"IFERROR(INDEX(수업목록[],MATCH(SUMPRODUCT((수업목록[요일]=수업시간표[[#Headers],[목요일]])*(ROUNDDOWN($B24,10)>=ROUNDDOWN(수업목록[시작 시간],10))*($B24<=수업목록[종료 시간]),수업목록[고유]),수업목록[고유],0),2),0)","v":0},{"$f":"IFERROR(INDEX(수업목록[],MATCH(SUMPRODUCT((수업목록[요일]=수업시간표[[#Headers],[금요일]])*(ROUNDDOWN($B24,10)>=ROUNDDOWN(수업목록[시작 시간],10))*($B24<=수업목록[종료 시간]),수업목록[고유]),수업목록[고유],0),2),0)","v":0},{"$f":"IFERROR(INDEX(수업목록[],MATCH(SUMPRODUCT((수업목록[요일]=수업시간표[[#Headers],[토요일]])*(ROUNDDOWN($B24,10)>=ROUNDDOWN(수업목록[시작 시간],10))*($B24<=수업목록[종료 시간]),수업목록[고유]),수업목록[고유],0),2),0)","v":0}]
[null,"13:15:00",{"$f":"IFERROR(INDEX(수업목록[],MATCH(SUMPRODUCT((수업목록[요일]=수업시간표[[#Headers],[일요일]])*(ROUNDDOWN($B25,10)>=ROUNDDOWN(수업목록[시작 시간],10))*($B25<=수업목록[종료 시간]),수업목록[고유]),수업목록[고유],0),2),0)","v":0},{"$f":"IFERROR(INDEX(수업목록[],MATCH(SUMPRODUCT((수업목록[요일]=수업시간표[[#Headers],[월요일]])*(ROUNDDOWN($B25,10)>=ROUNDDOWN(수업목록[시작 시간],10))*($B25<=수업목록[종료 시간]),수업목록[고유]),수업목록[고유],0),2),0)","v":"WR-121"},{"$f":"IFERROR(INDEX(수업목록[],MATCH(SUMPRODUCT((수업목록[요일]=수업시간표[[#Headers],[화요일]])*(ROUNDDOWN($B25,10)>=ROUNDDOWN(수업목록[시작 시간],10))*($B25<=수업목록[종료 시간]),수업목록[고유]),수업목록[고유],0),2),0)","v":0},{"$f":"IFERROR(INDEX(수업목록[],MATCH(SUMPRODUCT((수업목록[요일]=수업시간표[[#Headers],[수요일]])*(ROUNDDOWN($B25,10)>=ROUNDDOWN(수업목록[시작 시간],10))*($B25<=수업목록[종료 시간]),수업목록[고유]),수업목록[고유],0),2),0)","v":"WR-121"},{"$f":"IFERROR(INDEX(수업목록[],MATCH(SUMPRODUCT((수업목록[요일]=수업시간표[[#Headers],[목요일]])*(ROUNDDOWN($B25,10)>=ROUNDDOWN(수업목록[시작 시간],10))*($B25<=수업목록[종료 시간]),수업목록[고유]),수업목록[고유],0),2),0)","v":0},{"$f":"IFERROR(INDEX(수업목록[],MATCH(SUMPRODUCT((수업목록[요일]=수업시간표[[#Headers],[금요일]])*(ROUNDDOWN($B25,10)>=ROUNDDOWN(수업목록[시작 시간],10))*($B25<=수업목록[종료 시간]),수업목록[고유]),수업목록[고유],0),2),0)","v":0},{"$f":"IFERROR(INDEX(수업목록[],MATCH(SUMPRODUCT((수업목록[요일]=수업시간표[[#Headers],[토요일]])*(ROUNDDOWN($B25,10)>=ROUNDDOWN(수업목록[시작 시간],10))*($B25<=수업목록[종료 시간]),수업목록[고유]),수업목록[고유],0),2),0)","v":0}]
[null,"13:30:00",{"$f":"IFERROR(INDEX(수업목록[],MATCH(SUMPRODUCT((수업목록[요일]=수업시간표[[#Headers],[일요일]])*(ROUNDDOWN($B26,10)>=ROUNDDOWN(수업목록[시작 시간],10))*($B26<=수업목록[종료 시간]),수업목록[고유]),수업목록[고유],0),2),0)","v":0},{"$f":"IFERROR(INDEX(수업목록[],MATCH(SUMPRODUCT((수업목록[요일]=수업시간표[[#Headers],[월요일]])*(ROUNDDOWN($B26,10)>=ROUNDDOWN(수업목록[시작 시간],10))*($B26<=수업목록[종료 시간]),수업목록[고유]),수업목록[고유],0),2),0)","v":"WR-121"},{"$f":"IFERROR(INDEX(수업목록[],MATCH(SUMPRODUCT((수업목록[요일]=수업시간표[[#Headers],[화요일]])*(ROUNDDOWN($B26,10)>=ROUNDDOWN(수업목록[시작 시간],10))*($B26<=수업목록[종료 시간]),수업목록[고유]),수업목록[고유],0),2),0)","v":0},{"$f":"IFERROR(INDEX(수업목록[],MATCH(SUMPRODUCT((수업목록[요일]=수업시간표[[#Headers],[수요일]])*(ROUNDDOWN($B26,10)>=ROUNDDOWN(수업목록[시작 시간],10))*($B26<=수업목록[종료 시간]),수업목록[고유]),수업목록[고유],0),2),0)","v":"WR-121"},{"$f":"IFERROR(INDEX(수업목록[],MATCH(SUMPRODUCT((수업목록[요일]=수업시간표[[#Headers],[목요일]])*(ROUNDDOWN($B26,10)>=ROUNDDOWN(수업목록[시작 시간],10))*($B26<=수업목록[종료 시간]),수업목록[고유]),수업목록[고유],0),2),0)","v":0},{"$f":"IFERROR(INDEX(수업목록[],MATCH(SUMPRODUCT((수업목록[요일]=수업시간표[[#Headers],[금요일]])*(ROUNDDOWN($B26,10)>=ROUNDDOWN(수업목록[시작 시간],10))*($B26<=수업목록[종료 시간]),수업목록[고유]),수업목록[고유],0),2),0)","v":0},{"$f":"IFERROR(INDEX(수업목록[],MATCH(SUMPRODUCT((수업목록[요일]=수업시간표[[#Headers],[토요일]])*(ROUNDDOWN($B26,10)>=ROUNDDOWN(수업목록[시작 시간],10))*($B26<=수업목록[종료 시간]),수업목록[고유]),수업목록[고유],0),2),0)","v":0}]
[null,"13:45:00",{"$f":"IFERROR(INDEX(수업목록[],MATCH(SUMPRODUCT((수업목록[요일]=수업시간표[[#Headers],[일요일]])*(ROUNDDOWN($B27,10)>=ROUNDDOWN(수업목록[시작 시간],10))*($B27<=수업목록[종료 시간]),수업목록[고유]),수업목록[고유],0),2),0)","v":0},{"$f":"IFERROR(INDEX(수업목록[],MATCH(SUMPRODUCT((수업목록[요일]=수업시간표[[#Headers],[월요일]])*(ROUNDDOWN($B27,10)>=ROUNDDOWN(수업목록[시작 시간],10))*($B27<=수업목록[종료 시간]),수업목록[고유]),수업목록[고유],0),2),0)","v":"WR-121"},{"$f":"IFERROR(INDEX(수업목록[],MATCH(SUMPRODUCT((수업목록[요일]=수업시간표[[#Headers],[화요일]])*(ROUNDDOWN($B27,10)>=ROUNDDOWN(수업목록[시작 시간],10))*($B27<=수업목록[종료 시간]),수업목록[고유]),수업목록[고유],0),2),0)","v":0},{"$f":"IFERROR(INDEX(수업목록[],MATCH(SUMPRODUCT((수업목록[요일]=수업시간표[[#Headers],[수요일]])*(ROUNDDOWN($B27,10)>=ROUNDDOWN(수업목록[시작 시간],10))*($B27<=수업목록[종료 시간]),수업목록[고유]),수업목록[고유],0),2),0)","v":"WR-121"},{"$f":"IFERROR(INDEX(수업목록[],MATCH(SUMPRODUCT((수업목록[요일]=수업시간표[[#Headers],[목요일]])*(ROUNDDOWN($B27,10)>=ROUNDDOWN(수업목록[시작 시간],10))*($B27<=수업목록[종료 시간]),수업목록[고유]),수업목록[고유],0),2),0)","v":0},{"$f":"IFERROR(INDEX(수업목록[],MATCH(SUMPRODUCT((수업목록[요일]=수업시간표[[#Headers],[금요일]])*(ROUNDDOWN($B27,10)>=ROUNDDOWN(수업목록[시작 시간],10))*($B27<=수업목록[종료 시간]),수업목록[고유]),수업목록[고유],0),2),0)","v":0},{"$f":"IFERROR(INDEX(수업목록[],MATCH(SUMPRODUCT((수업목록[요일]=수업시간표[[#Headers],[토요일]])*(ROUNDDOWN($B27,10)>=ROUNDDOWN(수업목록[시작 시간],10))*($B27<=수업목록[종료 시간]),수업목록[고유]),수업목록[고유],0),2),0)","v":0}]
[null,"14:00:00",{"$f":"IFERROR(INDEX(수업목록[],MATCH(SUMPRODUCT((수업목록[요일]=수업시간표[[#Headers],[일요일]])*(ROUNDDOWN($B28,10)>=ROUNDDOWN(수업목록[시작 시간],10))*($B28<=수업목록[종료 시간]),수업목록[고유]),수업목록[고유],0),2),0)","v":0},{"$f":"IFERROR(INDEX(수업목록[],MATCH(SUMPRODUCT((수업목록[요일]=수업시간표[[#Headers],[월요일]])*(ROUNDDOWN($B28,10)>=ROUNDDOWN(수업목록[시작 시간],10))*($B28<=수업목록[종료 시간]),수업목록[고유]),수업목록[고유],0),2),0)","v":"WR-121"},{"$f":"IFERROR(INDEX(수업목록[],MATCH(SUMPRODUCT((수업목록[요일]=수업시간표[[#Headers],[화요일]])*(ROUNDDOWN($B28,10)>=ROUNDDOWN(수업목록[시작 시간],10))*($B28<=수업목록[종료 시간]),수업목록[고유]),수업목록[고유],0),2),0)","v":0},{"$f":"IFERROR(INDEX(수업목록[],MATCH(SUMPRODUCT((수업목록[요일]=수업시간표[[#Headers],[수요일]])*(ROUNDDOWN($B28,10)>=ROUNDDOWN(수업목록[시작 시간],10))*($B28<=수업목록[종료 시간]),수업목록[고유]),수업목록[고유],0),2),0)","v":"WR-121"},{"$f":"IFERROR(INDEX(수업목록[],MATCH(SUMPRODUCT((수업목록[요일]=수업시간표[[#Headers],[목요일]])*(ROUNDDOWN($B28,10)>=ROUNDDOWN(수업목록[시작 시간],10))*($B28<=수업목록[종료 시간]),수업목록[고유]),수업목록[고유],0),2),0)","v":0},{"$f":"IFERROR(INDEX(수업목록[],MATCH(SUMPRODUCT((수업목록[요일]=수업시간표[[#Headers],[금요일]])*(ROUNDDOWN($B28,10)>=ROUNDDOWN(수업목록[시작 시간],10))*($B28<=수업목록[종료 시간]),수업목록[고유]),수업목록[고유],0),2),0)","v":0},{"$f":"IFERROR(INDEX(수업목록[],MATCH(SUMPRODUCT((수업목록[요일]=수업시간표[[#Headers],[토요일]])*(ROUNDDOWN($B28,10)>=ROUNDDOWN(수업목록[시작 시간],10))*($B28<=수업목록[종료 시간]),수업목록[고유]),수업목록[고유],0),2),0)","v":0}]
[null,"14:15:00",{"$f":"IFERROR(INDEX(수업목록[],MATCH(SUMPRODUCT((수업목록[요일]=수업시간표[[#Headers],[일요일]])*(ROUNDDOWN($B29,10)>=ROUNDDOWN(수업목록[시작 시간],10))*($B29<=수업목록[종료 시간]),수업목록[고유]),수업목록[고유],0),2),0)","v":0},{"$f":"IFERROR(INDEX(수업목록[],MATCH(SUMPRODUCT((수업목록[요일]=수업시간표[[#Headers],[월요일]])*(ROUNDDOWN($B29,10)>=ROUNDDOWN(수업목록[시작 시간],10))*($B29<=수업목록[종료 시간]),수업목록[고유]),수업목록[고유],0),2),0)","v":0},{"$f":"IFERROR(INDEX(수업목록[],MATCH(SUMPRODUCT((수업목록[요일]=수업시간표[[#Headers],[화요일]])*(ROUNDDOWN($B29,10)>=ROUNDDOWN(수업목록[시작 시간],10))*($B29<=수업목록[종료 시간]),수업목록[고유]),수업목록[고유],0),2),0)","v":0},{"$f":"IFERROR(INDEX(수업목록[],MATCH(SUMPRODUCT((수업목록[요일]=수업시간표[[#Headers],[수요일]])*(ROUNDDOWN($B29,10)>=ROUNDDOWN(수업목록[시작 시간],10))*($B29<=수업목록[종료 시간]),수업목록[고유]),수업목록[고유],0),2),0)","v":0},{"$f":"IFERROR(INDEX(수업목록[],MATCH(SUMPRODUCT((수업목록[요일]=수업시간표[[#Headers],[목요일]])*(ROUNDDOWN($B29,10)>=ROUNDDOWN(수업목록[시작 시간],10))*($B29<=수업목록[종료 시간]),수업목록[고유]),수업목록[고유],0),2),0)","v":0},{"$f":"IFERROR(INDEX(수업목록[],MATCH(SUMPRODUCT((수업목록[요일]=수업시간표[[#Headers],[금요일]])*(ROUNDDOWN($B29,10)>=ROUNDDOWN(수업목록[시작 시간],10))*($B29<=수업목록[종료 시간]),수업목록[고유]),수업목록[고유],0),2),0)","v":0},{"$f":"IFERROR(INDEX(수업목록[],MATCH(SUMPRODUCT((수업목록[요일]=수업시간표[[#Headers],[토요일]])*(ROUNDDOWN($B29,10)>=ROUNDDOWN(수업목록[시작 시간],10))*($B29<=수업목록[종료 시간]),수업목록[고유]),수업목록[고유],0),2),0)","v":0}]
[null,"14:30:00",{"$f":"IFERROR(INDEX(수업목록[],MATCH(SUMPRODUCT((수업목록[요일]=수업시간표[[#Headers],[일요일]])*(ROUNDDOWN($B30,10)>=ROUNDDOWN(수업목록[시작 시간],10))*($B30<=수업목록[종료 시간]),수업목록[고유]),수업목록[고유],0),2),0)","v":0},{"$f":"IFERROR(INDEX(수업목록[],MATCH(SUMPRODUCT((수업목록[요일]=수업시간표[[#Headers],[월요일]])*(ROUNDDOWN($B30,10)>=ROUNDDOWN(수업목록[시작 시간],10))*($B30<=수업목록[종료 시간]),수업목록[고유]),수업목록[고유],0),2),0)","v":0},{"$f":"IFERROR(INDEX(수업목록[],MATCH(SUMPRODUCT((수업목록[요일]=수업시간표[[#Headers],[화요일]])*(ROUNDDOWN($B30,10)>=ROUNDDOWN(수업목록[시작 시간],10))*($B30<=수업목록[종료 시간]),수업목록[고유]),수업목록[고유],0),2),0)","v":0},{"$f":"IFERROR(INDEX(수업목록[],MATCH(SUMPRODUCT((수업목록[요일]=수업시간표[[#Headers],[수요일]])*(ROUNDDOWN($B30,10)>=ROUNDDOWN(수업목록[시작 시간],10))*($B30<=수업목록[종료 시간]),수업목록[고유]),수업목록[고유],0),2),0)","v":0},{"$f":"IFERROR(INDEX(수업목록[],MATCH(SUMPRODUCT((수업목록[요일]=수업시간표[[#Headers],[목요일]])*(ROUNDDOWN($B30,10)>=ROUNDDOWN(수업목록[시작 시간],10))*($B30<=수업목록[종료 시간]),수업목록[고유]),수업목록[고유],0),2),0)","v":0},{"$f":"IFERROR(INDEX(수업목록[],MATCH(SUMPRODUCT((수업목록[요일]=수업시간표[[#Headers],[금요일]])*(ROUNDDOWN($B30,10)>=ROUNDDOWN(수업목록[시작 시간],10))*($B30<=수업목록[종료 시간]),수업목록[고유]),수업목록[고유],0),2),0)","v":0},{"$f":"IFERROR(INDEX(수업목록[],MATCH(SUMPRODUCT((수업목록[요일]=수업시간표[[#Headers],[토요일]])*(ROUNDDOWN($B30,10)>=ROUNDDOWN(수업목록[시작 시간],10))*($B30<=수업목록[종료 시간]),수업목록[고유]),수업목록[고유],0),2),0)","v":0}]
[null,"14:45:00",{"$f":"IFERROR(INDEX(수업목록[],MATCH(SUMPRODUCT((수업목록[요일]=수업시간표[[#Headers],[일요일]])*(ROUNDDOWN($B31,10)>=ROUNDDOWN(수업목록[시작 시간],10))*($B31<=수업목록[종료 시간]),수업목록[고유]),수업목록[고유],0),2),0)","v":0},{"$f":"IFERROR(INDEX(수업목록[],MATCH(SUMPRODUCT((수업목록[요일]=수업시간표[[#Headers],[월요일]])*(ROUNDDOWN($B31,10)>=ROUNDDOWN(수업목록[시작 시간],10))*($B31<=수업목록[종료 시간]),수업목록[고유]),수업목록[고유],0),2),0)","v":0},{"$f":"IFERROR(INDEX(수업목록[],MATCH(SUMPRODUCT((수업목록[요일]=수업시간표[[#Headers],[화요일]])*(ROUNDDOWN($B31,10)>=ROUNDDOWN(수업목록[시작 시간],10))*($B31<=수업목록[종료 시간]),수업목록[고유]),수업목록[고유],0),2),0)","v":0},{"$f":"IFERROR(INDEX(수업목록[],MATCH(SUMPRODUCT((수업목록[요일]=수업시간표[[#Headers],[수요일]])*(ROUNDDOWN($B31,10)>=ROUNDDOWN(수업목록[시작 시간],10))*($B31<=수업목록[종료 시간]),수업목록[고유]),수업목록[고유],0),2),0)","v":0},{"$f":"IFERROR(INDEX(수업목록[],MATCH(SUMPRODUCT((수업목록[요일]=수업시간표[[#Headers],[목요일]])*(ROUNDDOWN($B31,10)>=ROUNDDOWN(수업목록[시작 시간],10))*($B31<=수업목록[종료 시간]),수업목록[고유]),수업목록[고유],0),2),0)","v":0},{"$f":"IFERROR(INDEX(수업목록[],MATCH(SUMPRODUCT((수업목록[요일]=수업시간표[[#Headers],[금요일]])*(ROUNDDOWN($B31,10)>=ROUNDDOWN(수업목록[시작 시간],10))*($B31<=수업목록[종료 시간]),수업목록[고유]),수업목록[고유],0),2),0)","v":0},{"$f":"IFERROR(INDEX(수업목록[],MATCH(SUMPRODUCT((수업목록[요일]=수업시간표[[#Headers],[토요일]])*(ROUNDDOWN($B31,10)>=ROUNDDOWN(수업목록[시작 시간],10))*($B31<=수업목록[종료 시간]),수업목록[고유]),수업목록[고유],0),2),0)","v":0}]
[null,"15:00:00",{"$f":"IFERROR(INDEX(수업목록[],MATCH(SUMPRODUCT((수업목록[요일]=수업시간표[[#Headers],[일요일]])*(ROUNDDOWN($B32,10)>=ROUNDDOWN(수업목록[시작 시간],10))*($B32<=수업목록[종료 시간]),수업목록[고유]),수업목록[고유],0),2),0)","v":0},{"$f":"IFERROR(INDEX(수업목록[],MATCH(SUMPRODUCT((수업목록[요일]=수업시간표[[#Headers],[월요일]])*(ROUNDDOWN($B32,10)>=ROUNDDOWN(수업목록[시작 시간],10))*($B32<=수업목록[종료 시간]),수업목록[고유]),수업목록[고유],0),2),0)","v":0},{"$f":"IFERROR(INDEX(수업목록[],MATCH(SUMPRODUCT((수업목록[요일]=수업시간표[[#Headers],[화요일]])*(ROUNDDOWN($B32,10)>=ROUNDDOWN(수업목록[시작 시간],10))*($B32<=수업목록[종료 시간]),수업목록[고유]),수업목록[고유],0),2),0)","v":0},{"$f":"IFERROR(INDEX(수업목록[],MATCH(SUMPRODUCT((수업목록[요일]=수업시간표[[#Headers],[수요일]])*(ROUNDDOWN($B32,10)>=ROUNDDOWN(수업목록[시작 시간],10))*($B32<=수업목록[종료 시간]),수업목록[고유]),수업목록[고유],0),2),0)","v":0},{"$f":"IFERROR(INDEX(수업목록[],MATCH(SUMPRODUCT((수업목록[요일]=수업시간표[[#Headers],[목요일]])*(ROUNDDOWN($B32,10)>=ROUNDDOWN(수업목록[시작 시간],10))*($B32<=수업목록[종료 시간]),수업목록[고유]),수업목록[고유],0),2),0)","v":0},{"$f":"IFERROR(INDEX(수업목록[],MATCH(SUMPRODUCT((수업목록[요일]=수업시간표[[#Headers],[금요일]])*(ROUNDDOWN($B32,10)>=ROUNDDOWN(수업목록[시작 시간],10))*($B32<=수업목록[종료 시간]),수업목록[고유]),수업목록[고유],0),2),0)","v":0},{"$f":"IFERROR(INDEX(수업목록[],MATCH(SUMPRODUCT((수업목록[요일]=수업시간표[[#Headers],[토요일]])*(ROUNDDOWN($B32,10)>=ROUNDDOWN(수업목록[시작 시간],10))*($B32<=수업목록[종료 시간]),수업목록[고유]),수업목록[고유],0),2),0)","v":0}]
[null,"15:15:00",{"$f":"IFERROR(INDEX(수업목록[],MATCH(SUMPRODUCT((수업목록[요일]=수업시간표[[#Headers],[일요일]])*(ROUNDDOWN($B33,10)>=ROUNDDOWN(수업목록[시작 시간],10))*($B33<=수업목록[종료 시간]),수업목록[고유]),수업목록[고유],0),2),0)","v":0},{"$f":"IFERROR(INDEX(수업목록[],MATCH(SUMPRODUCT((수업목록[요일]=수업시간표[[#Headers],[월요일]])*(ROUNDDOWN($B33,10)>=ROUNDDOWN(수업목록[시작 시간],10))*($B33<=수업목록[종료 시간]),수업목록[고유]),수업목록[고유],0),2),0)","v":0},{"$f":"IFERROR(INDEX(수업목록[],MATCH(SUMPRODUCT((수업목록[요일]=수업시간표[[#Headers],[화요일]])*(ROUNDDOWN($B33,10)>=ROUNDDOWN(수업목록[시작 시간],10))*($B33<=수업목록[종료 시간]),수업목록[고유]),수업목록[고유],0),2),0)","v":0},{"$f":"IFERROR(INDEX(수업목록[],MATCH(SUMPRODUCT((수업목록[요일]=수업시간표[[#Headers],[수요일]])*(ROUNDDOWN($B33,10)>=ROUNDDOWN(수업목록[시작 시간],10))*($B33<=수업목록[종료 시간]),수업목록[고유]),수업목록[고유],0),2),0)","v":0},{"$f":"IFERROR(INDEX(수업목록[],MATCH(SUMPRODUCT((수업목록[요일]=수업시간표[[#Headers],[목요일]])*(ROUNDDOWN($B33,10)>=ROUNDDOWN(수업목록[시작 시간],10))*($B33<=수업목록[종료 시간]),수업목록[고유]),수업목록[고유],0),2),0)","v":0},{"$f":"IFERROR(INDEX(수업목록[],MATCH(SUMPRODUCT((수업목록[요일]=수업시간표[[#Headers],[금요일]])*(ROUNDDOWN($B33,10)>=ROUNDDOWN(수업목록[시작 시간],10))*($B33<=수업목록[종료 시간]),수업목록[고유]),수업목록[고유],0),2),0)","v":0},{"$f":"IFERROR(INDEX(수업목록[],MATCH(SUMPRODUCT((수업목록[요일]=수업시간표[[#Headers],[토요일]])*(ROUNDDOWN($B33,10)>=ROUNDDOWN(수업목록[시작 시간],10))*($B33<=수업목록[종료 시간]),수업목록[고유]),수업목록[고유],0),2),0)","v":0}]
[null,"15:30:00",{"$f":"IFERROR(INDEX(수업목록[],MATCH(SUMPRODUCT((수업목록[요일]=수업시간표[[#Headers],[일요일]])*(ROUNDDOWN($B34,10)>=ROUNDDOWN(수업목록[시작 시간],10))*($B34<=수업목록[종료 시간]),수업목록[고유]),수업목록[고유],0),2),0)","v":0},{"$f":"IFERROR(INDEX(수업목록[],MATCH(SUMPRODUCT((수업목록[요일]=수업시간표[[#Headers],[월요일]])*(ROUNDDOWN($B34,10)>=ROUNDDOWN(수업목록[시작 시간],10))*($B34<=수업목록[종료 시간]),수업목록[고유]),수업목록[고유],0),2),0)","v":0},{"$f":"IFERROR(INDEX(수업목록[],MATCH(SUMPRODUCT((수업목록[요일]=수업시간표[[#Headers],[화요일]])*(ROUNDDOWN($B34,10)>=ROUNDDOWN(수업목록[시작 시간],10))*($B34<=수업목록[종료 시간]),수업목록[고유]),수업목록[고유],0),2),0)","v":0},{"$f":"IFERROR(INDEX(수업목록[],MATCH(SUMPRODUCT((수업목록[요일]=수업시간표[[#Headers],[수요일]])*(ROUNDDOWN($B34,10)>=ROUNDDOWN(수업목록[시작 시간],10))*($B34<=수업목록[종료 시간]),수업목록[고유]),수업목록[고유],0),2),0)","v":0},{"$f":"IFERROR(INDEX(수업목록[],MATCH(SUMPRODUCT((수업목록[요일]=수업시간표[[#Headers],[목요일]])*(ROUNDDOWN($B34,10)>=ROUNDDOWN(수업목록[시작 시간],10))*($B34<=수업목록[종료 시간]),수업목록[고유]),수업목록[고유],0),2),0)","v":0},{"$f":"IFERROR(INDEX(수업목록[],MATCH(SUMPRODUCT((수업목록[요일]=수업시간표[[#Headers],[금요일]])*(ROUNDDOWN($B34,10)>=ROUNDDOWN(수업목록[시작 시간],10))*($B34<=수업목록[종료 시간]),수업목록[고유]),수업목록[고유],0),2),0)","v":0},{"$f":"IFERROR(INDEX(수업목록[],MATCH(SUMPRODUCT((수업목록[요일]=수업시간표[[#Headers],[토요일]])*(ROUNDDOWN($B34,10)>=ROUNDDOWN(수업목록[시작 시간],10))*($B34<=수업목록[종료 시간]),수업목록[고유]),수업목록[고유],0),2),0)","v":0}]
[null,"15:45:00",{"$f":"IFERROR(INDEX(수업목록[],MATCH(SUMPRODUCT((수업목록[요일]=수업시간표[[#Headers],[일요일]])*(ROUNDDOWN($B35,10)>=ROUNDDOWN(수업목록[시작 시간],10))*($B35<=수업목록[종료 시간]),수업목록[고유]),수업목록[고유],0),2),0)","v":0},{"$f":"IFERROR(INDEX(수업목록[],MATCH(SUMPRODUCT((수업목록[요일]=수업시간표[[#Headers],[월요일]])*(ROUNDDOWN($B35,10)>=ROUNDDOWN(수업목록[시작 시간],10))*($B35<=수업목록[종료 시간]),수업목록[고유]),수업목록[고유],0),2),0)","v":0},{"$f":"IFERROR(INDEX(수업목록[],MATCH(SUMPRODUCT((수업목록[요일]=수업시간표[[#Headers],[화요일]])*(ROUNDDOWN($B35,10)>=ROUNDDOWN(수업목록[시작 시간],10))*($B35<=수업목록[종료 시간]),수업목록[고유]),수업목록[고유],0),2),0)","v":0},{"$f":"IFERROR(INDEX(수업목록[],MATCH(SUMPRODUCT((수업목록[요일]=수업시간표[[#Headers],[수요일]])*(ROUNDDOWN($B35,10)>=ROUNDDOWN(수업목록[시작 시간],10))*($B35<=수업목록[종료 시간]),수업목록[고유]),수업목록[고유],0),2),0)","v":0},{"$f":"IFERROR(INDEX(수업목록[],MATCH(SUMPRODUCT((수업목록[요일]=수업시간표[[#Headers],[목요일]])*(ROUNDDOWN($B35,10)>=ROUNDDOWN(수업목록[시작 시간],10))*($B35<=수업목록[종료 시간]),수업목록[고유]),수업목록[고유],0),2),0)","v":0},{"$f":"IFERROR(INDEX(수업목록[],MATCH(SUMPRODUCT((수업목록[요일]=수업시간표[[#Headers],[금요일]])*(ROUNDDOWN($B35,10)>=ROUNDDOWN(수업목록[시작 시간],10))*($B35<=수업목록[종료 시간]),수업목록[고유]),수업목록[고유],0),2),0)","v":0},{"$f":"IFERROR(INDEX(수업목록[],MATCH(SUMPRODUCT((수업목록[요일]=수업시간표[[#Headers],[토요일]])*(ROUNDDOWN($B35,10)>=ROUNDDOWN(수업목록[시작 시간],10))*($B35<=수업목록[종료 시간]),수업목록[고유]),수업목록[고유],0),2),0)","v":0}]
[null,"16:00:00",{"$f":"IFERROR(INDEX(수업목록[],MATCH(SUMPRODUCT((수업목록[요일]=수업시간표[[#Headers],[일요일]])*(ROUNDDOWN($B36,10)>=ROUNDDOWN(수업목록[시작 시간],10))*($B36<=수업목록[종료 시간]),수업목록[고유]),수업목록[고유],0),2),0)","v":0},{"$f":"IFERROR(INDEX(수업목록[],MATCH(SUMPRODUCT((수업목록[요일]=수업시간표[[#Headers],[월요일]])*(ROUNDDOWN($B36,10)>=ROUNDDOWN(수업목록[시작 시간],10))*($B36<=수업목록[종료 시간]),수업목록[고유]),수업목록[고유],0),2),0)","v":"SP-111"},{"$f":"IFERROR(INDEX(수업목록[],MATCH(SUMPRODUCT((수업목록[요일]=수업시간표[[#Headers],[화요일]])*(ROUNDDOWN($B36,10)>=ROUNDDOWN(수업목록[시작 시간],10))*($B36<=수업목록[종료 시간]),수업목록[고유]),수업목록[고유],0),2),0)","v":0},{"$f":"IFERROR(INDEX(수업목록[],MATCH(SUMPRODUCT((수업목록[요일]=수업시간표[[#Headers],[수요일]])*(ROUNDDOWN($B36,10)>=ROUNDDOWN(수업목록[시작 시간],10))*($B36<=수업목록[종료 시간]),수업목록[고유]),수업목록[고유],0),2),0)","v":0},{"$f":"IFERROR(INDEX(수업목록[],MATCH(SUMPRODUCT((수업목록[요일]=수업시간표[[#Headers],[목요일]])*(ROUNDDOWN($B36,10)>=ROUNDDOWN(수업목록[시작 시간],10))*($B36<=수업목록[종료 시간]),수업목록[고유]),수업목록[고유],0),2),0)","v":0},{"$f":"IFERROR(INDEX(수업목록[],MATCH(SUMPRODUCT((수업목록[요일]=수업시간표[[#Headers],[금요일]])*(ROUNDDOWN($B36,10)>=ROUNDDOWN(수업목록[시작 시간],10))*($B36<=수업목록[종료 시간]),수업목록[고유]),수업목록[고유],0),2),0)","v":0},{"$f":"IFERROR(INDEX(수업목록[],MATCH(SUMPRODUCT((수업목록[요일]=수업시간표[[#Headers],[토요일]])*(ROUNDDOWN($B36,10)>=ROUNDDOWN(수업목록[시작 시간],10))*($B36<=수업목록[종료 시간]),수업목록[고유]),수업목록[고유],0),2),0)","v":0}]
[null,{"$f":"B36+증분","v":"16:15:00"},{"$f":"IFERROR(INDEX(수업목록[],MATCH(SUMPRODUCT((수업목록[요일]=수업시간표[[#Headers],[일요일]])*(ROUNDDOWN($B37,10)>=ROUNDDOWN(수업목록[시작 시간],10))*($B37<=수업목록[종료 시간]),수업목록[고유]),수업목록[고유],0),2),0)","v":0},{"$f":"IFERROR(INDEX(수업목록[],MATCH(SUMPRODUCT((수업목록[요일]=수업시간표[[#Headers],[월요일]])*(ROUNDDOWN($B37,10)>=ROUNDDOWN(수업목록[시작 시간],10))*($B37<=수업목록[종료 시간]),수업목록[고유]),수업목록[고유],0),2),0)","v":"SP-111"},{"$f":"IFERROR(INDEX(수업목록[],MATCH(SUMPRODUCT((수업목록[요일]=수업시간표[[#Headers],[화요일]])*(ROUNDDOWN($B37,10)>=ROUNDDOWN(수업목록[시작 시간],10))*($B37<=수업목록[종료 시간]),수업목록[고유]),수업목록[고유],0),2),0)","v":0},{"$f":"IFERROR(INDEX(수업목록[],MATCH(SUMPRODUCT((수업목록[요일]=수업시간표[[#Headers],[수요일]])*(ROUNDDOWN($B37,10)>=ROUNDDOWN(수업목록[시작 시간],10))*($B37<=수업목록[종료 시간]),수업목록[고유]),수업목록[고유],0),2),0)","v":0},{"$f":"IFERROR(INDEX(수업목록[],MATCH(SUMPRODUCT((수업목록[요일]=수업시간표[[#Headers],[목요일]])*(ROUNDDOWN($B37,10)>=ROUNDDOWN(수업목록[시작 시간],10))*($B37<=수업목록[종료 시간]),수업목록[고유]),수업목록[고유],0),2),0)","v":0},{"$f":"IFERROR(INDEX(수업목록[],MATCH(SUMPRODUCT((수업목록[요일]=수업시간표[[#Headers],[금요일]])*(ROUNDDOWN($B37,10)>=ROUNDDOWN(수업목록[시작 시간],10))*($B37<=수업목록[종료 시간]),수업목록[고유]),수업목록[고유],0),2),0)","v":0},{"$f":"IFERROR(INDEX(수업목록[],MATCH(SUMPRODUCT((수업목록[요일]=수업시간표[[#Headers],[토요일]])*(ROUNDDOWN($B37,10)>=ROUNDDOWN(수업목록[시작 시간],10))*($B37<=수업목록[종료 시간]),수업목록[고유]),수업목록[고유],0),2),0)","v":0}]
[null,"16:30:00",{"$f":"IFERROR(INDEX(수업목록[],MATCH(SUMPRODUCT((수업목록[요일]=수업시간표[[#Headers],[일요일]])*(ROUNDDOWN($B38,10)>=ROUNDDOWN(수업목록[시작 시간],10))*($B38<=수업목록[종료 시간]),수업목록[고유]),수업목록[고유],0),2),0)","v":0},{"$f":"IFERROR(INDEX(수업목록[],MATCH(SUMPRODUCT((수업목록[요일]=수업시간표[[#Headers],[월요일]])*(ROUNDDOWN($B38,10)>=ROUNDDOWN(수업목록[시작 시간],10))*($B38<=수업목록[종료 시간]),수업목록[고유]),수업목록[고유],0),2),0)","v":"SP-111"},{"$f":"IFERROR(INDEX(수업목록[],MATCH(SUMPRODUCT((수업목록[요일]=수업시간표[[#Headers],[화요일]])*(ROUNDDOWN($B38,10)>=ROUNDDOWN(수업목록[시작 시간],10))*($B38<=수업목록[종료 시간]),수업목록[고유]),수업목록[고유],0),2),0)","v":0},{"$f":"IFERROR(INDEX(수업목록[],MATCH(SUMPRODUCT((수업목록[요일]=수업시간표[[#Headers],[수요일]])*(ROUNDDOWN($B38,10)>=ROUNDDOWN(수업목록[시작 시간],10))*($B38<=수업목록[종료 시간]),수업목록[고유]),수업목록[고유],0),2),0)","v":0},{"$f":"IFERROR(INDEX(수업목록[],MATCH(SUMPRODUCT((수업목록[요일]=수업시간표[[#Headers],[목요일]])*(ROUNDDOWN($B38,10)>=ROUNDDOWN(수업목록[시작 시간],10))*($B38<=수업목록[종료 시간]),수업목록[고유]),수업목록[고유],0),2),0)","v":0},{"$f":"IFERROR(INDEX(수업목록[],MATCH(SUMPRODUCT((수업목록[요일]=수업시간표[[#Headers],[금요일]])*(ROUNDDOWN($B38,10)>=ROUNDDOWN(수업목록[시작 시간],10))*($B38<=수업목록[종료 시간]),수업목록[고유]),수업목록[고유],0),2),0)","v":0},{"$f":"IFERROR(INDEX(수업목록[],MATCH(SUMPRODUCT((수업목록[요일]=수업시간표[[#Headers],[토요일]])*(ROUNDDOWN($B38,10)>=ROUNDDOWN(수업목록[시작 시간],10))*($B38<=수업목록[종료 시간]),수업목록[고유]),수업목록[고유],0),2),0)","v":0}]
[null,"16:45:00",{"$f":"IFERROR(INDEX(수업목록[],MATCH(SUMPRODUCT((수업목록[요일]=수업시간표[[#Headers],[일요일]])*(ROUNDDOWN($B39,10)>=ROUNDDOWN(수업목록[시작 시간],10))*($B39<=수업목록[종료 시간]),수업목록[고유]),수업목록[고유],0),2),0)","v":0},{"$f":"IFERROR(INDEX(수업목록[],MATCH(SUMPRODUCT((수업목록[요일]=수업시간표[[#Headers],[월요일]])*(ROUNDDOWN($B39,10)>=ROUNDDOWN(수업목록[시작 시간],10))*($B39<=수업목록[종료 시간]),수업목록[고유]),수업목록[고유],0),2),0)","v":"SP-111"},{"$f":"IFERROR(INDEX(수업목록[],MATCH(SUMPRODUCT((수업목록[요일]=수업시간표[[#Headers],[화요일]])*(ROUNDDOWN($B39,10)>=ROUNDDOWN(수업목록[시작 시간],10))*($B39<=수업목록[종료 시간]),수업목록[고유]),수업목록[고유],0),2),0)","v":0},{"$f":"IFERROR(INDEX(수업목록[],MATCH(SUMPRODUCT((수업목록[요일]=수업시간표[[#Headers],[수요일]])*(ROUNDDOWN($B39,10)>=ROUNDDOWN(수업목록[시작 시간],10))*($B39<=수업목록[종료 시간]),수업목록[고유]),수업목록[고유],0),2),0)","v":0},{"$f":"IFERROR(INDEX(수업목록[],MATCH(SUMPRODUCT((수업목록[요일]=수업시간표[[#Headers],[목요일]])*(ROUNDDOWN($B39,10)>=ROUNDDOWN(수업목록[시작 시간],10))*($B39<=수업목록[종료 시간]),수업목록[고유]),수업목록[고유],0),2),0)","v":0},{"$f":"IFERROR(INDEX(수업목록[],MATCH(SUMPRODUCT((수업목록[요일]=수업시간표[[#Headers],[금요일]])*(ROUNDDOWN($B39,10)>=ROUNDDOWN(수업목록[시작 시간],10))*($B39<=수업목록[종료 시간]),수업목록[고유]),수업목록[고유],0),2),0)","v":0},{"$f":"IFERROR(INDEX(수업목록[],MATCH(SUMPRODUCT((수업목록[요일]=수업시간표[[#Headers],[토요일]])*(ROUNDDOWN($B39,10)>=ROUNDDOWN(수업목록[시작 시간],10))*($B39<=수업목록[종료 시간]),수업목록[고유]),수업목록[고유],0),2),0)","v":0}]
[null,"17:00:00",{"$f":"IFERROR(INDEX(수업목록[],MATCH(SUMPRODUCT((수업목록[요일]=수업시간표[[#Headers],[일요일]])*(ROUNDDOWN($B40,10)>=ROUNDDOWN(수업목록[시작 시간],10))*($B40<=수업목록[종료 시간]),수업목록[고유]),수업목록[고유],0),2),0)","v":0},{"$f":"IFERROR(INDEX(수업목록[],MATCH(SUMPRODUCT((수업목록[요일]=수업시간표[[#Headers],[월요일]])*(ROUNDDOWN($B40,10)>=ROUNDDOWN(수업목록[시작 시간],10))*($B40<=수업목록[종료 시간]),수업목록[고유]),수업목록[고유],0),2),0)","v":"SP-111"},{"$f":"IFERROR(INDEX(수업목록[],MATCH(SUMPRODUCT((수업목록[요일]=수업시간표[[#Headers],[화요일]])*(ROUNDDOWN($B40,10)>=ROUNDDOWN(수업목록[시작 시간],10))*($B40<=수업목록[종료 시간]),수업목록[고유]),수업목록[고유],0),2),0)","v":0},{"$f":"IFERROR(INDEX(수업목록[],MATCH(SUMPRODUCT((수업목록[요일]=수업시간표[[#Headers],[수요일]])*(ROUNDDOWN($B40,10)>=ROUNDDOWN(수업목록[시작 시간],10))*($B40<=수업목록[종료 시간]),수업목록[고유]),수업목록[고유],0),2),0)","v":0},{"$f":"IFERROR(INDEX(수업목록[],MATCH(SUMPRODUCT((수업목록[요일]=수업시간표[[#Headers],[목요일]])*(ROUNDDOWN($B40,10)>=ROUNDDOWN(수업목록[시작 시간],10))*($B40<=수업목록[종료 시간]),수업목록[고유]),수업목록[고유],0),2),0)","v":0},{"$f":"IFERROR(INDEX(수업목록[],MATCH(SUMPRODUCT((수업목록[요일]=수업시간표[[#Headers],[금요일]])*(ROUNDDOWN($B40,10)>=ROUNDDOWN(수업목록[시작 시간],10))*($B40<=수업목록[종료 시간]),수업목록[고유]),수업목록[고유],0),2),0)","v":0},{"$f":"IFERROR(INDEX(수업목록[],MATCH(SUMPRODUCT((수업목록[요일]=수업시간표[[#Headers],[토요일]])*(ROUNDDOWN($B40,10)>=ROUNDDOWN(수업목록[시작 시간],10))*($B40<=수업목록[종료 시간]),수업목록[고유]),수업목록[고유],0),2),0)","v":0}]
[null,"17:15:00",{"$f":"IFERROR(INDEX(수업목록[],MATCH(SUMPRODUCT((수업목록[요일]=수업시간표[[#Headers],[일요일]])*(ROUNDDOWN($B41,10)>=ROUNDDOWN(수업목록[시작 시간],10))*($B41<=수업목록[종료 시간]),수업목록[고유]),수업목록[고유],0),2),0)","v":0},{"$f":"IFERROR(INDEX(수업목록[],MATCH(SUMPRODUCT((수업목록[요일]=수업시간표[[#Headers],[월요일]])*(ROUNDDOWN($B41,10)>=ROUNDDOWN(수업목록[시작 시간],10))*($B41<=수업목록[종료 시간]),수업목록[고유]),수업목록[고유],0),2),0)","v":0},{"$f":"IFERROR(INDEX(수업목록[],MATCH(SUMPRODUCT((수업목록[요일]=수업시간표[[#Headers],[화요일]])*(ROUNDDOWN($B41,10)>=ROUNDDOWN(수업목록[시작 시간],10))*($B41<=수업목록[종료 시간]),수업목록[고유]),수업목록[고유],0),2),0)","v":0},{"$f":"IFERROR(INDEX(수업목록[],MATCH(SUMPRODUCT((수업목록[요일]=수업시간표[[#Headers],[수요일]])*(ROUNDDOWN($B41,10)>=ROUNDDOWN(수업목록[시작 시간],10))*($B41<=수업목록[종료 시간]),수업목록[고유]),수업목록[고유],0),2),0)","v":0},{"$f":"IFERROR(INDEX(수업목록[],MATCH(SUMPRODUCT((수업목록[요일]=수업시간표[[#Headers],[목요일]])*(ROUNDDOWN($B41,10)>=ROUNDDOWN(수업목록[시작 시간],10))*($B41<=수업목록[종료 시간]),수업목록[고유]),수업목록[고유],0),2),0)","v":0},{"$f":"IFERROR(INDEX(수업목록[],MATCH(SUMPRODUCT((수업목록[요일]=수업시간표[[#Headers],[금요일]])*(ROUNDDOWN($B41,10)>=ROUNDDOWN(수업목록[시작 시간],10))*($B41<=수업목록[종료 시간]),수업목록[고유]),수업목록[고유],0),2),0)","v":0},{"$f":"IFERROR(INDEX(수업목록[],MATCH(SUMPRODUCT((수업목록[요일]=수업시간표[[#Headers],[토요일]])*(ROUNDDOWN($B41,10)>=ROUNDDOWN(수업목록[시작 시간],10))*($B41<=수업목록[종료 시간]),수업목록[고유]),수업목록[고유],0),2),0)","v":0}]
[null,"17:30:00",{"$f":"IFERROR(INDEX(수업목록[],MATCH(SUMPRODUCT((수업목록[요일]=수업시간표[[#Headers],[일요일]])*(ROUNDDOWN($B42,10)>=ROUNDDOWN(수업목록[시작 시간],10))*($B42<=수업목록[종료 시간]),수업목록[고유]),수업목록[고유],0),2),0)","v":0},{"$f":"IFERROR(INDEX(수업목록[],MATCH(SUMPRODUCT((수업목록[요일]=수업시간표[[#Headers],[월요일]])*(ROUNDDOWN($B42,10)>=ROUNDDOWN(수업목록[시작 시간],10))*($B42<=수업목록[종료 시간]),수업목록[고유]),수업목록[고유],0),2),0)","v":0},{"$f":"IFERROR(INDEX(수업목록[],MATCH(SUMPRODUCT((수업목록[요일]=수업시간표[[#Headers],[화요일]])*(ROUNDDOWN($B42,10)>=ROUNDDOWN(수업목록[시작 시간],10))*($B42<=수업목록[종료 시간]),수업목록[고유]),수업목록[고유],0),2),0)","v":0},{"$f":"IFERROR(INDEX(수업목록[],MATCH(SUMPRODUCT((수업목록[요일]=수업시간표[[#Headers],[수요일]])*(ROUNDDOWN($B42,10)>=ROUNDDOWN(수업목록[시작 시간],10))*($B42<=수업목록[종료 시간]),수업목록[고유]),수업목록[고유],0),2),0)","v":0},{"$f":"IFERROR(INDEX(수업목록[],MATCH(SUMPRODUCT((수업목록[요일]=수업시간표[[#Headers],[목요일]])*(ROUNDDOWN($B42,10)>=ROUNDDOWN(수업목록[시작 시간],10))*($B42<=수업목록[종료 시간]),수업목록[고유]),수업목록[고유],0),2),0)","v":0},{"$f":"IFERROR(INDEX(수업목록[],MATCH(SUMPRODUCT((수업목록[요일]=수업시간표[[#Headers],[금요일]])*(ROUNDDOWN($B42,10)>=ROUNDDOWN(수업목록[시작 시간],10))*($B42<=수업목록[종료 시간]),수업목록[고유]),수업목록[고유],0),2),0)","v":0},{"$f":"IFERROR(INDEX(수업목록[],MATCH(SUMPRODUCT((수업목록[요일]=수업시간표[[#Headers],[토요일]])*(ROUNDDOWN($B42,10)>=ROUNDDOWN(수업목록[시작 시간],10))*($B42<=수업목록[종료 시간]),수업목록[고유]),수업목록[고유],0),2),0)","v":0}]
[null,"17:45:00",{"$f":"IFERROR(INDEX(수업목록[],MATCH(SUMPRODUCT((수업목록[요일]=수업시간표[[#Headers],[일요일]])*(ROUNDDOWN($B43,10)>=ROUNDDOWN(수업목록[시작 시간],10))*($B43<=수업목록[종료 시간]),수업목록[고유]),수업목록[고유],0),2),0)","v":0},{"$f":"IFERROR(INDEX(수업목록[],MATCH(SUMPRODUCT((수업목록[요일]=수업시간표[[#Headers],[월요일]])*(ROUNDDOWN($B43,10)>=ROUNDDOWN(수업목록[시작 시간],10))*($B43<=수업목록[종료 시간]),수업목록[고유]),수업목록[고유],0),2),0)","v":0},{"$f":"IFERROR(INDEX(수업목록[],MATCH(SUMPRODUCT((수업목록[요일]=수업시간표[[#Headers],[화요일]])*(ROUNDDOWN($B43,10)>=ROUNDDOWN(수업목록[시작 시간],10))*($B43<=수업목록[종료 시간]),수업목록[고유]),수업목록[고유],0),2),0)","v":0},{"$f":"IFERROR(INDEX(수업목록[],MATCH(SUMPRODUCT((수업목록[요일]=수업시간표[[#Headers],[수요일]])*(ROUNDDOWN($B43,10)>=ROUNDDOWN(수업목록[시작 시간],10))*($B43<=수업목록[종료 시간]),수업목록[고유]),수업목록[고유],0),2),0)","v":0},{"$f":"IFERROR(INDEX(수업목록[],MATCH(SUMPRODUCT((수업목록[요일]=수업시간표[[#Headers],[목요일]])*(ROUNDDOWN($B43,10)>=ROUNDDOWN(수업목록[시작 시간],10))*($B43<=수업목록[종료 시간]),수업목록[고유]),수업목록[고유],0),2),0)","v":0},{"$f":"IFERROR(INDEX(수업목록[],MATCH(SUMPRODUCT((수업목록[요일]=수업시간표[[#Headers],[금요일]])*(ROUNDDOWN($B43,10)>=ROUNDDOWN(수업목록[시작 시간],10))*($B43<=수업목록[종료 시간]),수업목록[고유]),수업목록[고유],0),2),0)","v":0},{"$f":"IFERROR(INDEX(수업목록[],MATCH(SUMPRODUCT((수업목록[요일]=수업시간표[[#Headers],[토요일]])*(ROUNDDOWN($B43,10)>=ROUNDDOWN(수업목록[시작 시간],10))*($B43<=수업목록[종료 시간]),수업목록[고유]),수업목록[고유],0),2),0)","v":0}]
[null,"18:00:00",{"$f":"IFERROR(INDEX(수업목록[],MATCH(SUMPRODUCT((수업목록[요일]=수업시간표[[#Headers],[일요일]])*(ROUNDDOWN($B44,10)>=ROUNDDOWN(수업목록[시작 시간],10))*($B44<=수업목록[종료 시간]),수업목록[고유]),수업목록[고유],0),2),0)","v":0},{"$f":"IFERROR(INDEX(수업목록[],MATCH(SUMPRODUCT((수업목록[요일]=수업시간표[[#Headers],[월요일]])*(ROUNDDOWN($B44,10)>=ROUNDDOWN(수업목록[시작 시간],10))*($B44<=수업목록[종료 시간]),수업목록[고유]),수업목록[고유],0),2),0)","v":0},{"$f":"IFERROR(INDEX(수업목록[],MATCH(SUMPRODUCT((수업목록[요일]=수업시간표[[#Headers],[화요일]])*(ROUNDDOWN($B44,10)>=ROUNDDOWN(수업목록[시작 시간],10))*($B44<=수업목록[종료 시간]),수업목록[고유]),수업목록[고유],0),2),0)","v":0},{"$f":"IFERROR(INDEX(수업목록[],MATCH(SUMPRODUCT((수업목록[요일]=수업시간표[[#Headers],[수요일]])*(ROUNDDOWN($B44,10)>=ROUNDDOWN(수업목록[시작 시간],10))*($B44<=수업목록[종료 시간]),수업목록[고유]),수업목록[고유],0),2),0)","v":0},{"$f":"IFERROR(INDEX(수업목록[],MATCH(SUMPRODUCT((수업목록[요일]=수업시간표[[#Headers],[목요일]])*(ROUNDDOWN($B44,10)>=ROUNDDOWN(수업목록[시작 시간],10))*($B44<=수업목록[종료 시간]),수업목록[고유]),수업목록[고유],0),2),0)","v":0},{"$f":"IFERROR(INDEX(수업목록[],MATCH(SUMPRODUCT((수업목록[요일]=수업시간표[[#Headers],[금요일]])*(ROUNDDOWN($B44,10)>=ROUNDDOWN(수업목록[시작 시간],10))*($B44<=수업목록[종료 시간]),수업목록[고유]),수업목록[고유],0),2),0)","v":0},{"$f":"IFERROR(INDEX(수업목록[],MATCH(SUMPRODUCT((수업목록[요일]=수업시간표[[#Headers],[토요일]])*(ROUNDDOWN($B44,10)>=ROUNDDOWN(수업목록[시작 시간],10))*($B44<=수업목록[종료 시간]),수업목록[고유]),수업목록[고유],0),2),0)","v":0}]
[null,"18:15:00",{"$f":"IFERROR(INDEX(수업목록[],MATCH(SUMPRODUCT((수업목록[요일]=수업시간표[[#Headers],[일요일]])*(ROUNDDOWN($B45,10)>=ROUNDDOWN(수업목록[시작 시간],10))*($B45<=수업목록[종료 시간]),수업목록[고유]),수업목록[고유],0),2),0)","v":0},{"$f":"IFERROR(INDEX(수업목록[],MATCH(SUMPRODUCT((수업목록[요일]=수업시간표[[#Headers],[월요일]])*(ROUNDDOWN($B45,10)>=ROUNDDOWN(수업목록[시작 시간],10))*($B45<=수업목록[종료 시간]),수업목록[고유]),수업목록[고유],0),2),0)","v":0},{"$f":"IFERROR(INDEX(수업목록[],MATCH(SUMPRODUCT((수업목록[요일]=수업시간표[[#Headers],[화요일]])*(ROUNDDOWN($B45,10)>=ROUNDDOWN(수업목록[시작 시간],10))*($B45<=수업목록[종료 시간]),수업목록[고유]),수업목록[고유],0),2),0)","v":0},{"$f":"IFERROR(INDEX(수업목록[],MATCH(SUMPRODUCT((수업목록[요일]=수업시간표[[#Headers],[수요일]])*(ROUNDDOWN($B45,10)>=ROUNDDOWN(수업목록[시작 시간],10))*($B45<=수업목록[종료 시간]),수업목록[고유]),수업목록[고유],0),2),0)","v":0},{"$f":"IFERROR(INDEX(수업목록[],MATCH(SUMPRODUCT((수업목록[요일]=수업시간표[[#Headers],[목요일]])*(ROUNDDOWN($B45,10)>=ROUNDDOWN(수업목록[시작 시간],10))*($B45<=수업목록[종료 시간]),수업목록[고유]),수업목록[고유],0),2),0)","v":0},{"$f":"IFERROR(INDEX(수업목록[],MATCH(SUMPRODUCT((수업목록[요일]=수업시간표[[#Headers],[금요일]])*(ROUNDDOWN($B45,10)>=ROUNDDOWN(수업목록[시작 시간],10))*($B45<=수업목록[종료 시간]),수업목록[고유]),수업목록[고유],0),2),0)","v":0},{"$f":"IFERROR(INDEX(수업목록[],MATCH(SUMPRODUCT((수업목록[요일]=수업시간표[[#Headers],[토요일]])*(ROUNDDOWN($B45,10)>=ROUNDDOWN(수업목록[시작 시간],10))*($B45<=수업목록[종료 시간]),수업목록[고유]),수업목록[고유],0),2),0)","v":0}]
[null,"18:30:00",{"$f":"IFERROR(INDEX(수업목록[],MATCH(SUMPRODUCT((수업목록[요일]=수업시간표[[#Headers],[일요일]])*(ROUNDDOWN($B46,10)>=ROUNDDOWN(수업목록[시작 시간],10))*($B46<=수업목록[종료 시간]),수업목록[고유]),수업목록[고유],0),2),0)","v":0},{"$f":"IFERROR(INDEX(수업목록[],MATCH(SUMPRODUCT((수업목록[요일]=수업시간표[[#Headers],[월요일]])*(ROUNDDOWN($B46,10)>=ROUNDDOWN(수업목록[시작 시간],10))*($B46<=수업목록[종료 시간]),수업목록[고유]),수업목록[고유],0),2),0)","v":0},{"$f":"IFERROR(INDEX(수업목록[],MATCH(SUMPRODUCT((수업목록[요일]=수업시간표[[#Headers],[화요일]])*(ROUNDDOWN($B46,10)>=ROUNDDOWN(수업목록[시작 시간],10))*($B46<=수업목록[종료 시간]),수업목록[고유]),수업목록[고유],0),2),0)","v":0},{"$f":"IFERROR(INDEX(수업목록[],MATCH(SUMPRODUCT((수업목록[요일]=수업시간표[[#Headers],[수요일]])*(ROUNDDOWN($B46,10)>=ROUNDDOWN(수업목록[시작 시간],10))*($B46<=수업목록[종료 시간]),수업목록[고유]),수업목록[고유],0),2),0)","v":0},{"$f":"IFERROR(INDEX(수업목록[],MATCH(SUMPRODUCT((수업목록[요일]=수업시간표[[#Headers],[목요일]])*(ROUNDDOWN($B46,10)>=ROUNDDOWN(수업목록[시작 시간],10))*($B46<=수업목록[종료 시간]),수업목록[고유]),수업목록[고유],0),2),0)","v":0},{"$f":"IFERROR(INDEX(수업목록[],MATCH(SUMPRODUCT((수업목록[요일]=수업시간표[[#Headers],[금요일]])*(ROUNDDOWN($B46,10)>=ROUNDDOWN(수업목록[시작 시간],10))*($B46<=수업목록[종료 시간]),수업목록[고유]),수업목록[고유],0),2),0)","v":0},{"$f":"IFERROR(INDEX(수업목록[],MATCH(SUMPRODUCT((수업목록[요일]=수업시간표[[#Headers],[토요일]])*(ROUNDDOWN($B46,10)>=ROUNDDOWN(수업목록[시작 시간],10))*($B46<=수업목록[종료 시간]),수업목록[고유]),수업목록[고유],0),2),0)","v":0}]
[null,"18:45:00",{"$f":"IFERROR(INDEX(수업목록[],MATCH(SUMPRODUCT((수업목록[요일]=수업시간표[[#Headers],[일요일]])*(ROUNDDOWN($B47,10)>=ROUNDDOWN(수업목록[시작 시간],10))*($B47<=수업목록[종료 시간]),수업목록[고유]),수업목록[고유],0),2),0)","v":0},{"$f":"IFERROR(INDEX(수업목록[],MATCH(SUMPRODUCT((수업목록[요일]=수업시간표[[#Headers],[월요일]])*(ROUNDDOWN($B47,10)>=ROUNDDOWN(수업목록[시작 시간],10))*($B47<=수업목록[종료 시간]),수업목록[고유]),수업목록[고유],0),2),0)","v":0},{"$f":"IFERROR(INDEX(수업목록[],MATCH(SUMPRODUCT((수업목록[요일]=수업시간표[[#Headers],[화요일]])*(ROUNDDOWN($B47,10)>=ROUNDDOWN(수업목록[시작 시간],10))*($B47<=수업목록[종료 시간]),수업목록[고유]),수업목록[고유],0),2),0)","v":0},{"$f":"IFERROR(INDEX(수업목록[],MATCH(SUMPRODUCT((수업목록[요일]=수업시간표[[#Headers],[수요일]])*(ROUNDDOWN($B47,10)>=ROUNDDOWN(수업목록[시작 시간],10))*($B47<=수업목록[종료 시간]),수업목록[고유]),수업목록[고유],0),2),0)","v":0},{"$f":"IFERROR(INDEX(수업목록[],MATCH(SUMPRODUCT((수업목록[요일]=수업시간표[[#Headers],[목요일]])*(ROUNDDOWN($B47,10)>=ROUNDDOWN(수업목록[시작 시간],10))*($B47<=수업목록[종료 시간]),수업목록[고유]),수업목록[고유],0),2),0)","v":0},{"$f":"IFERROR(INDEX(수업목록[],MATCH(SUMPRODUCT((수업목록[요일]=수업시간표[[#Headers],[금요일]])*(ROUNDDOWN($B47,10)>=ROUNDDOWN(수업목록[시작 시간],10))*($B47<=수업목록[종료 시간]),수업목록[고유]),수업목록[고유],0),2),0)","v":0},{"$f":"IFERROR(INDEX(수업목록[],MATCH(SUMPRODUCT((수업목록[요일]=수업시간표[[#Headers],[토요일]])*(ROUNDDOWN($B47,10)>=ROUNDDOWN(수업목록[시작 시간],10))*($B47<=수업목록[종료 시간]),수업목록[고유]),수업목록[고유],0),2),0)","v":0}]
[null,"19:00:00",{"$f":"IFERROR(INDEX(수업목록[],MATCH(SUMPRODUCT((수업목록[요일]=수업시간표[[#Headers],[일요일]])*(ROUNDDOWN($B48,10)>=ROUNDDOWN(수업목록[시작 시간],10))*($B48<=수업목록[종료 시간]),수업목록[고유]),수업목록[고유],0),2),0)","v":0},{"$f":"IFERROR(INDEX(수업목록[],MATCH(SUMPRODUCT((수업목록[요일]=수업시간표[[#Headers],[월요일]])*(ROUNDDOWN($B48,10)>=ROUNDDOWN(수업목록[시작 시간],10))*($B48<=수업목록[종료 시간]),수업목록[고유]),수업목록[고유],0),2),0)","v":0},{"$f":"IFERROR(INDEX(수업목록[],MATCH(SUMPRODUCT((수업목록[요일]=수업시간표[[#Headers],[화요일]])*(ROUNDDOWN($B48,10)>=ROUNDDOWN(수업목록[시작 시간],10))*($B48<=수업목록[종료 시간]),수업목록[고유]),수업목록[고유],0),2),0)","v":0},{"$f":"IFERROR(INDEX(수업목록[],MATCH(SUMPRODUCT((수업목록[요일]=수업시간표[[#Headers],[수요일]])*(ROUNDDOWN($B48,10)>=ROUNDDOWN(수업목록[시작 시간],10))*($B48<=수업목록[종료 시간]),수업목록[고유]),수업목록[고유],0),2),0)","v":0},{"$f":"IFERROR(INDEX(수업목록[],MATCH(SUMPRODUCT((수업목록[요일]=수업시간표[[#Headers],[목요일]])*(ROUNDDOWN($B48,10)>=ROUNDDOWN(수업목록[시작 시간],10))*($B48<=수업목록[종료 시간]),수업목록[고유]),수업목록[고유],0),2),0)","v":0},{"$f":"IFERROR(INDEX(수업목록[],MATCH(SUMPRODUCT((수업목록[요일]=수업시간표[[#Headers],[금요일]])*(ROUNDDOWN($B48,10)>=ROUNDDOWN(수업목록[시작 시간],10))*($B48<=수업목록[종료 시간]),수업목록[고유]),수업목록[고유],0),2),0)","v":0},{"$f":"IFERROR(INDEX(수업목록[],MATCH(SUMPRODUCT((수업목록[요일]=수업시간표[[#Headers],[토요일]])*(ROUNDDOWN($B48,10)>=ROUNDDOWN(수업목록[시작 시간],10))*($B48<=수업목록[종료 시간]),수업목록[고유]),수업목록[고유],0),2),0)","v":0}]
[null,"19:15:00",{"$f":"IFERROR(INDEX(수업목록[],MATCH(SUMPRODUCT((수업목록[요일]=수업시간표[[#Headers],[일요일]])*(ROUNDDOWN($B49,10)>=ROUNDDOWN(수업목록[시작 시간],10))*($B49<=수업목록[종료 시간]),수업목록[고유]),수업목록[고유],0),2),0)","v":0},{"$f":"IFERROR(INDEX(수업목록[],MATCH(SUMPRODUCT((수업목록[요일]=수업시간표[[#Headers],[월요일]])*(ROUNDDOWN($B49,10)>=ROUNDDOWN(수업목록[시작 시간],10))*($B49<=수업목록[종료 시간]),수업목록[고유]),수업목록[고유],0),2),0)","v":0},{"$f":"IFERROR(INDEX(수업목록[],MATCH(SUMPRODUCT((수업목록[요일]=수업시간표[[#Headers],[화요일]])*(ROUNDDOWN($B49,10)>=ROUNDDOWN(수업목록[시작 시간],10))*($B49<=수업목록[종료 시간]),수업목록[고유]),수업목록[고유],0),2),0)","v":0},{"$f":"IFERROR(INDEX(수업목록[],MATCH(SUMPRODUCT((수업목록[요일]=수업시간표[[#Headers],[수요일]])*(ROUNDDOWN($B49,10)>=ROUNDDOWN(수업목록[시작 시간],10))*($B49<=수업목록[종료 시간]),수업목록[고유]),수업목록[고유],0),2),0)","v":0},{"$f":"IFERROR(INDEX(수업목록[],MATCH(SUMPRODUCT((수업목록[요일]=수업시간표[[#Headers],[목요일]])*(ROUNDDOWN($B49,10)>=ROUNDDOWN(수업목록[시작 시간],10))*($B49<=수업목록[종료 시간]),수업목록[고유]),수업목록[고유],0),2),0)","v":0},{"$f":"IFERROR(INDEX(수업목록[],MATCH(SUMPRODUCT((수업목록[요일]=수업시간표[[#Headers],[금요일]])*(ROUNDDOWN($B49,10)>=ROUNDDOWN(수업목록[시작 시간],10))*($B49<=수업목록[종료 시간]),수업목록[고유]),수업목록[고유],0),2),0)","v":0},{"$f":"IFERROR(INDEX(수업목록[],MATCH(SUMPRODUCT((수업목록[요일]=수업시간표[[#Headers],[토요일]])*(ROUNDDOWN($B49,10)>=ROUNDDOWN(수업목록[시작 시간],10))*($B49<=수업목록[종료 시간]),수업목록[고유]),수업목록[고유],0),2),0)","v":0}]
[null,"19:30:00",{"$f":"IFERROR(INDEX(수업목록[],MATCH(SUMPRODUCT((수업목록[요일]=수업시간표[[#Headers],[일요일]])*(ROUNDDOWN($B50,10)>=ROUNDDOWN(수업목록[시작 시간],10))*($B50<=수업목록[종료 시간]),수업목록[고유]),수업목록[고유],0),2),0)","v":0},{"$f":"IFERROR(INDEX(수업목록[],MATCH(SUMPRODUCT((수업목록[요일]=수업시간표[[#Headers],[월요일]])*(ROUNDDOWN($B50,10)>=ROUNDDOWN(수업목록[시작 시간],10))*($B50<=수업목록[종료 시간]),수업목록[고유]),수업목록[고유],0),2),0)","v":0},{"$f":"IFERROR(INDEX(수업목록[],MATCH(SUMPRODUCT((수업목록[요일]=수업시간표[[#Headers],[화요일]])*(ROUNDDOWN($B50,10)>=ROUNDDOWN(수업목록[시작 시간],10))*($B50<=수업목록[종료 시간]),수업목록[고유]),수업목록[고유],0),2),0)","v":0},{"$f":"IFERROR(INDEX(수업목록[],MATCH(SUMPRODUCT((수업목록[요일]=수업시간표[[#Headers],[수요일]])*(ROUNDDOWN($B50,10)>=ROUNDDOWN(수업목록[시작 시간],10))*($B50<=수업목록[종료 시간]),수업목록[고유]),수업목록[고유],0),2),0)","v":0},{"$f":"IFERROR(INDEX(수업목록[],MATCH(SUMPRODUCT((수업목록[요일]=수업시간표[[#Headers],[목요일]])*(ROUNDDOWN($B50,10)>=ROUNDDOWN(수업목록[시작 시간],10))*($B50<=수업목록[종료 시간]),수업목록[고유]),수업목록[고유],0),2),0)","v":0},{"$f":"IFERROR(INDEX(수업목록[],MATCH(SUMPRODUCT((수업목록[요일]=수업시간표[[#Headers],[금요일]])*(ROUNDDOWN($B50,10)>=ROUNDDOWN(수업목록[시작 시간],10))*($B50<=수업목록[종료 시간]),수업목록[고유]),수업목록[고유],0),2),0)","v":0},{"$f":"IFERROR(INDEX(수업목록[],MATCH(SUMPRODUCT((수업목록[요일]=수업시간표[[#Headers],[토요일]])*(ROUNDDOWN($B50,10)>=ROUNDDOWN(수업목록[시작 시간],10))*($B50<=수업목록[종료 시간]),수업목록[고유]),수업목록[고유],0),2),0)","v":0}]
[null,"19:45:00",{"$f":"IFERROR(INDEX(수업목록[],MATCH(SUMPRODUCT((수업목록[요일]=수업시간표[[#Headers],[일요일]])*(ROUNDDOWN($B51,10)>=ROUNDDOWN(수업목록[시작 시간],10))*($B51<=수업목록[종료 시간]),수업목록[고유]),수업목록[고유],0),2),0)","v":0},{"$f":"IFERROR(INDEX(수업목록[],MATCH(SUMPRODUCT((수업목록[요일]=수업시간표[[#Headers],[월요일]])*(ROUNDDOWN($B51,10)>=ROUNDDOWN(수업목록[시작 시간],10))*($B51<=수업목록[종료 시간]),수업목록[고유]),수업목록[고유],0),2),0)","v":0},{"$f":"IFERROR(INDEX(수업목록[],MATCH(SUMPRODUCT((수업목록[요일]=수업시간표[[#Headers],[화요일]])*(ROUNDDOWN($B51,10)>=ROUNDDOWN(수업목록[시작 시간],10))*($B51<=수업목록[종료 시간]),수업목록[고유]),수업목록[고유],0),2),0)","v":0},{"$f":"IFERROR(INDEX(수업목록[],MATCH(SUMPRODUCT((수업목록[요일]=수업시간표[[#Headers],[수요일]])*(ROUNDDOWN($B51,10)>=ROUNDDOWN(수업목록[시작 시간],10))*($B51<=수업목록[종료 시간]),수업목록[고유]),수업목록[고유],0),2),0)","v":0},{"$f":"IFERROR(INDEX(수업목록[],MATCH(SUMPRODUCT((수업목록[요일]=수업시간표[[#Headers],[목요일]])*(ROUNDDOWN($B51,10)>=ROUNDDOWN(수업목록[시작 시간],10))*($B51<=수업목록[종료 시간]),수업목록[고유]),수업목록[고유],0),2),0)","v":0},{"$f":"IFERROR(INDEX(수업목록[],MATCH(SUMPRODUCT((수업목록[요일]=수업시간표[[#Headers],[금요일]])*(ROUNDDOWN($B51,10)>=ROUNDDOWN(수업목록[시작 시간],10))*($B51<=수업목록[종료 시간]),수업목록[고유]),수업목록[고유],0),2),0)","v":0},{"$f":"IFERROR(INDEX(수업목록[],MATCH(SUMPRODUCT((수업목록[요일]=수업시간표[[#Headers],[토요일]])*(ROUNDDOWN($B51,10)>=ROUNDDOWN(수업목록[시작 시간],10))*($B51<=수업목록[종료 시간]),수업목록[고유]),수업목록[고유],0),2),0)","v":0}]
[null,"20:00:00",{"$f":"IFERROR(INDEX(수업목록[],MATCH(SUMPRODUCT((수업목록[요일]=수업시간표[[#Headers],[일요일]])*(ROUNDDOWN($B52,10)>=ROUNDDOWN(수업목록[시작 시간],10))*($B52<=수업목록[종료 시간]),수업목록[고유]),수업목록[고유],0),2),0)","v":0},{"$f":"IFERROR(INDEX(수업목록[],MATCH(SUMPRODUCT((수업목록[요일]=수업시간표[[#Headers],[월요일]])*(ROUNDDOWN($B52,10)>=ROUNDDOWN(수업목록[시작 시간],10))*($B52<=수업목록[종료 시간]),수업목록[고유]),수업목록[고유],0),2),0)","v":0},{"$f":"IFERROR(INDEX(수업목록[],MATCH(SUMPRODUCT((수업목록[요일]=수업시간표[[#Headers],[화요일]])*(ROUNDDOWN($B52,10)>=ROUNDDOWN(수업목록[시작 시간],10))*($B52<=수업목록[종료 시간]),수업목록[고유]),수업목록[고유],0),2),0)","v":0},{"$f":"IFERROR(INDEX(수업목록[],MATCH(SUMPRODUCT((수업목록[요일]=수업시간표[[#Headers],[수요일]])*(ROUNDDOWN($B52,10)>=ROUNDDOWN(수업목록[시작 시간],10))*($B52<=수업목록[종료 시간]),수업목록[고유]),수업목록[고유],0),2),0)","v":0},{"$f":"IFERROR(INDEX(수업목록[],MATCH(SUMPRODUCT((수업목록[요일]=수업시간표[[#Headers],[목요일]])*(ROUNDDOWN($B52,10)>=ROUNDDOWN(수업목록[시작 시간],10))*($B52<=수업목록[종료 시간]),수업목록[고유]),수업목록[고유],0),2),0)","v":0},{"$f":"IFERROR(INDEX(수업목록[],MATCH(SUMPRODUCT((수업목록[요일]=수업시간표[[#Headers],[금요일]])*(ROUNDDOWN($B52,10)>=ROUNDDOWN(수업목록[시작 시간],10))*($B52<=수업목록[종료 시간]),수업목록[고유]),수업목록[고유],0),2),0)","v":0},{"$f":"IFERROR(INDEX(수업목록[],MATCH(SUMPRODUCT((수업목록[요일]=수업시간표[[#Headers],[토요일]])*(ROUNDDOWN($B52,10)>=ROUNDDOWN(수업목록[시작 시간],10))*($B52<=수업목록[종료 시간]),수업목록[고유]),수업목록[고유],0),2),0)","v":0}]
[null,"20:15:00",{"$f":"IFERROR(INDEX(수업목록[],MATCH(SUMPRODUCT((수업목록[요일]=수업시간표[[#Headers],[일요일]])*(ROUNDDOWN($B53,10)>=ROUNDDOWN(수업목록[시작 시간],10))*($B53<=수업목록[종료 시간]),수업목록[고유]),수업목록[고유],0),2),0)","v":0},{"$f":"IFERROR(INDEX(수업목록[],MATCH(SUMPRODUCT((수업목록[요일]=수업시간표[[#Headers],[월요일]])*(ROUNDDOWN($B53,10)>=ROUNDDOWN(수업목록[시작 시간],10))*($B53<=수업목록[종료 시간]),수업목록[고유]),수업목록[고유],0),2),0)","v":0},{"$f":"IFERROR(INDEX(수업목록[],MATCH(SUMPRODUCT((수업목록[요일]=수업시간표[[#Headers],[화요일]])*(ROUNDDOWN($B53,10)>=ROUNDDOWN(수업목록[시작 시간],10))*($B53<=수업목록[종료 시간]),수업목록[고유]),수업목록[고유],0),2),0)","v":0},{"$f":"IFERROR(INDEX(수업목록[],MATCH(SUMPRODUCT((수업목록[요일]=수업시간표[[#Headers],[수요일]])*(ROUNDDOWN($B53,10)>=ROUNDDOWN(수업목록[시작 시간],10))*($B53<=수업목록[종료 시간]),수업목록[고유]),수업목록[고유],0),2),0)","v":0},{"$f":"IFERROR(INDEX(수업목록[],MATCH(SUMPRODUCT((수업목록[요일]=수업시간표[[#Headers],[목요일]])*(ROUNDDOWN($B53,10)>=ROUNDDOWN(수업목록[시작 시간],10))*($B53<=수업목록[종료 시간]),수업목록[고유]),수업목록[고유],0),2),0)","v":0},{"$f":"IFERROR(INDEX(수업목록[],MATCH(SUMPRODUCT((수업목록[요일]=수업시간표[[#Headers],[금요일]])*(ROUNDDOWN($B53,10)>=ROUNDDOWN(수업목록[시작 시간],10))*($B53<=수업목록[종료 시간]),수업목록[고유]),수업목록[고유],0),2),0)","v":0},{"$f":"IFERROR(INDEX(수업목록[],MATCH(SUMPRODUCT((수업목록[요일]=수업시간표[[#Headers],[토요일]])*(ROUNDDOWN($B53,10)>=ROUNDDOWN(수업목록[시작 시간],10))*($B53<=수업목록[종료 시간]),수업목록[고유]),수업목록[고유],0),2),0)","v":0}]
[null,"20:30:00",{"$f":"IFERROR(INDEX(수업목록[],MATCH(SUMPRODUCT((수업목록[요일]=수업시간표[[#Headers],[일요일]])*(ROUNDDOWN($B54,10)>=ROUNDDOWN(수업목록[시작 시간],10))*($B54<=수업목록[종료 시간]),수업목록[고유]),수업목록[고유],0),2),0)","v":0},{"$f":"IFERROR(INDEX(수업목록[],MATCH(SUMPRODUCT((수업목록[요일]=수업시간표[[#Headers],[월요일]])*(ROUNDDOWN($B54,10)>=ROUNDDOWN(수업목록[시작 시간],10))*($B54<=수업목록[종료 시간]),수업목록[고유]),수업목록[고유],0),2),0)","v":0},{"$f":"IFERROR(INDEX(수업목록[],MATCH(SUMPRODUCT((수업목록[요일]=수업시간표[[#Headers],[화요일]])*(ROUNDDOWN($B54,10)>=ROUNDDOWN(수업목록[시작 시간],10))*($B54<=수업목록[종료 시간]),수업목록[고유]),수업목록[고유],0),2),0)","v":0},{"$f":"IFERROR(INDEX(수업목록[],MATCH(SUMPRODUCT((수업목록[요일]=수업시간표[[#Headers],[수요일]])*(ROUNDDOWN($B54,10)>=ROUNDDOWN(수업목록[시작 시간],10))*($B54<=수업목록[종료 시간]),수업목록[고유]),수업목록[고유],0),2),0)","v":0},{"$f":"IFERROR(INDEX(수업목록[],MATCH(SUMPRODUCT((수업목록[요일]=수업시간표[[#Headers],[목요일]])*(ROUNDDOWN($B54,10)>=ROUNDDOWN(수업목록[시작 시간],10))*($B54<=수업목록[종료 시간]),수업목록[고유]),수업목록[고유],0),2),0)","v":0},{"$f":"IFERROR(INDEX(수업목록[],MATCH(SUMPRODUCT((수업목록[요일]=수업시간표[[#Headers],[금요일]])*(ROUNDDOWN($B54,10)>=ROUNDDOWN(수업목록[시작 시간],10))*($B54<=수업목록[종료 시간]),수업목록[고유]),수업목록[고유],0),2),0)","v":0},{"$f":"IFERROR(INDEX(수업목록[],MATCH(SUMPRODUCT((수업목록[요일]=수업시간표[[#Headers],[토요일]])*(ROUNDDOWN($B54,10)>=ROUNDDOWN(수업목록[시작 시간],10))*($B54<=수업목록[종료 시간]),수업목록[고유]),수업목록[고유],0),2),0)","v":0}]
[null,"20:45:00",{"$f":"IFERROR(INDEX(수업목록[],MATCH(SUMPRODUCT((수업목록[요일]=수업시간표[[#Headers],[일요일]])*(ROUNDDOWN($B55,10)>=ROUNDDOWN(수업목록[시작 시간],10))*($B55<=수업목록[종료 시간]),수업목록[고유]),수업목록[고유],0),2),0)","v":0},{"$f":"IFERROR(INDEX(수업목록[],MATCH(SUMPRODUCT((수업목록[요일]=수업시간표[[#Headers],[월요일]])*(ROUNDDOWN($B55,10)>=ROUNDDOWN(수업목록[시작 시간],10))*($B55<=수업목록[종료 시간]),수업목록[고유]),수업목록[고유],0),2),0)","v":0},{"$f":"IFERROR(INDEX(수업목록[],MATCH(SUMPRODUCT((수업목록[요일]=수업시간표[[#Headers],[화요일]])*(ROUNDDOWN($B55,10)>=ROUNDDOWN(수업목록[시작 시간],10))*($B55<=수업목록[종료 시간]),수업목록[고유]),수업목록[고유],0),2),0)","v":0},{"$f":"IFERROR(INDEX(수업목록[],MATCH(SUMPRODUCT((수업목록[요일]=수업시간표[[#Headers],[수요일]])*(ROUNDDOWN($B55,10)>=ROUNDDOWN(수업목록[시작 시간],10))*($B55<=수업목록[종료 시간]),수업목록[고유]),수업목록[고유],0),2),0)","v":0},{"$f":"IFERROR(INDEX(수업목록[],MATCH(SUMPRODUCT((수업목록[요일]=수업시간표[[#Headers],[목요일]])*(ROUNDDOWN($B55,10)>=ROUNDDOWN(수업목록[시작 시간],10))*($B55<=수업목록[종료 시간]),수업목록[고유]),수업목록[고유],0),2),0)","v":0},{"$f":"IFERROR(INDEX(수업목록[],MATCH(SUMPRODUCT((수업목록[요일]=수업시간표[[#Headers],[금요일]])*(ROUNDDOWN($B55,10)>=ROUNDDOWN(수업목록[시작 시간],10))*($B55<=수업목록[종료 시간]),수업목록[고유]),수업목록[고유],0),2),0)","v":0},{"$f":"IFERROR(INDEX(수업목록[],MATCH(SUMPRODUCT((수업목록[요일]=수업시간표[[#Headers],[토요일]])*(ROUNDDOWN($B55,10)>=ROUNDDOWN(수업목록[시작 시간],10))*($B55<=수업목록[종료 시간]),수업목록[고유]),수업목록[고유],0),2),0)","v":0}]
[null,"21:00:00",{"$f":"IFERROR(INDEX(수업목록[],MATCH(SUMPRODUCT((수업목록[요일]=수업시간표[[#Headers],[일요일]])*(ROUNDDOWN($B56,10)>=ROUNDDOWN(수업목록[시작 시간],10))*($B56<=수업목록[종료 시간]),수업목록[고유]),수업목록[고유],0),2),0)","v":0},{"$f":"IFERROR(INDEX(수업목록[],MATCH(SUMPRODUCT((수업목록[요일]=수업시간표[[#Headers],[월요일]])*(ROUNDDOWN($B56,10)>=ROUNDDOWN(수업목록[시작 시간],10))*($B56<=수업목록[종료 시간]),수업목록[고유]),수업목록[고유],0),2),0)","v":0},{"$f":"IFERROR(INDEX(수업목록[],MATCH(SUMPRODUCT((수업목록[요일]=수업시간표[[#Headers],[화요일]])*(ROUNDDOWN($B56,10)>=ROUNDDOWN(수업목록[시작 시간],10))*($B56<=수업목록[종료 시간]),수업목록[고유]),수업목록[고유],0),2),0)","v":0},{"$f":"IFERROR(INDEX(수업목록[],MATCH(SUMPRODUCT((수업목록[요일]=수업시간표[[#Headers],[수요일]])*(ROUNDDOWN($B56,10)>=ROUNDDOWN(수업목록[시작 시간],10))*($B56<=수업목록[종료 시간]),수업목록[고유]),수업목록[고유],0),2),0)","v":0},{"$f":"IFERROR(INDEX(수업목록[],MATCH(SUMPRODUCT((수업목록[요일]=수업시간표[[#Headers],[목요일]])*(ROUNDDOWN($B56,10)>=ROUNDDOWN(수업목록[시작 시간],10))*($B56<=수업목록[종료 시간]),수업목록[고유]),수업목록[고유],0),2),0)","v":0},{"$f":"IFERROR(INDEX(수업목록[],MATCH(SUMPRODUCT((수업목록[요일]=수업시간표[[#Headers],[금요일]])*(ROUNDDOWN($B56,10)>=ROUNDDOWN(수업목록[시작 시간],10))*($B56<=수업목록[종료 시간]),수업목록[고유]),수업목록[고유],0),2),0)","v":0},{"$f":"IFERROR(INDEX(수업목록[],MATCH(SUMPRODUCT((수업목록[요일]=수업시간표[[#Headers],[토요일]])*(ROUNDDOWN($B56,10)>=ROUNDDOWN(수업목록[시작 시간],10))*($B56<=수업목록[종료 시간]),수업목록[고유]),수업목록[고유],0),2),0)","v":0}]

{"sheet":"수업 목록","index":1,"n_rows":10,"n_cols":8,"rows_kept":10,"merged":[[0,1,0,5],[0,6,0,7]]}
[null,"수업 목록",{"$nulls":4},"수업 시간표"]
[null,"수업","ID","요일","위치","시작 시간","종료 시간","고유"]
[null,"테크니컬 글쓰기","WR-121","월요일","A관","13:00:00","14:00:00",{"$f":"ROW()-ROW(수업목록[[#Headers],[고유]])","v":1}]
[null,"테크니컬 글쓰기","WR-121","수요일","A관","13:00:00","14:00:00",{"$f":"ROW()-ROW(수업목록[[#Headers],[고유]])","v":2}]
[null,"발표","SP-111","월요일","B관","16:00:00","17:00:00",{"$f":"ROW()-ROW(수업목록[[#Headers],[고유]])","v":3}]
[null,"건강 및 피트니스","HPE-295","화요일","B관","11:00:00","12:00:00",{"$f":"ROW()-ROW(수업목록[[#Headers],[고유]])","v":4}]
[null,"건강 및 피트니스","HPE-295","목요일","B관","11:00:00","12:00:00",{"$f":"ROW()-ROW(수업목록[[#Headers],[고유]])","v":5}]
[null,"대수학","MTH-113","월요일","C관","08:10:00","09:15:00",{"$f":"ROW()-ROW(수업목록[[#Headers],[고유]])","v":6}]
[null,"대수학","MTH-113","수요일","C관","08:10:00","09:15:00",{"$f":"ROW()-ROW(수업목록[[#Headers],[고유]])","v":7}]
[null,"대수학","MTH-113","금요일","C관","08:10:00","09:15:00",{"$f":"ROW()-ROW(수업목록[[#Headers],[고유]])","v":8}]